{"text_format":"1","workbook":"xlsx","n_sheets":3,"sheets":["育英会提出用","学校控用","記入例"],"not_rendered":{"charts":0,"images":4,"macros":1,"external_links":0,"defined_names":3,"comments":0,"pivot_tables":0},"unopened":[],"bounds":{"document_bytes":16777216,"sheet_cells":100000,"rows_first":2000,"rows_last":500,"rows_between":2000,"halvings":0,"cell_chars":16384,"cell_head_chars":4096},"cells_cut":0,"cells_raw":0,"read":"whole","date_system":"1900"}

{"sheet":"育英会提出用","index":0,"n_rows":977,"n_cols":144,"rows_kept":977,"cut":false,"hidden":false,"merged":[[5,146,16,146],[17,145,21,146],[53,4,53,146],[0,118,4,146],[0,0,4,117],[49,0,101,3],[41,92,44,94],[41,95,44,106],[17,68,21,144],[14,68,16,70],[14,71,16,76],[14,77,16,78],[14,79,16,85],[13,134,16,136],[13,137,16,142],[13,128,16,133],[13,125,16,127],[13,118,16,124],[13,110,16,117],[54,4,59,28],[69,4,77,28],[78,4,86,28],[87,4,95,28],[96,4,104,28],[241,0,244,3],[41,107,44,119],[11,64,16,67],[17,66,21,67],[22,66,27,67],[28,66,32,67],[41,66,44,67],[11,68,13,109],[14,86,16,109],[11,110,12,145],[22,68,27,119],[28,68,32,119],[33,68,35,119],[13,143,16,145],[41,77,44,79],[41,80,44,91],[36,68,40,119],[49,23,52,25],[36,50,40,65],[41,50,44,65],[60,4,68,28],[36,66,40,67],[204,4,212,28],[213,4,221,28],[222,4,230,28],[168,4,176,28],[177,4,185,28],[186,4,194,28],[195,4,203,28],[105,0,146,3],[150,0,191,3],[195,0,236,3],[105,4,113,28],[114,4,122,28],[123,4,131,28],[132,4,140,28],[141,4,149,28],[33,66,35,67],[5,0,10,145],[192,0,194,3],[237,0,239,3],[241,139,244,142],[241,132,244,135],[11,0,16,63],[102,0,104,3],[147,0,149,3],[241,143,244,146],[241,136,244,138],[17,50,21,65],[22,50,27,65],[28,50,32,65],[33,50,35,65],[49,4,52,12],[49,13,52,22],[49,26,52,146],[41,68,44,76],[231,4,239,28],[241,4,244,121],[150,4,158,28],[159,4,167,28],[186,29,194,91],[195,29,203,91],[204,29,212,91],[213,29,221,91],[222,29,230,91],[231,29,239,91],[60,92,68,146],[69,92,77,146],[78,92,86,146],[87,92,95,146],[96,92,104,146],[105,92,113,146],[114,92,122,146],[123,92,131,146],[132,92,140,146],[141,92,149,146],[150,92,158,146],[159,92,167,146],[168,92,176,146],[177,92,185,146],[186,92,194,146],[195,92,203,146],[204,92,212,146],[60,29,68,91],[213,92,221,146],[45,50,48,65],[45,66,48,67],[45,68,48,76],[45,77,48,79],[45,80,48,91],[45,92,48,94],[45,95,48,106],[45,107,48,119],[177,29,185,91],[54,29,59,91],[54,92,59,146],[69,29,77,91],[78,29,86,91],[87,29,95,91],[96,29,104,91],[105,29,113,91],[114,29,122,91],[123,29,131,91],[132,29,140,91],[141,29,149,91],[150,29,158,91],[159,29,167,91],[168,29,176,91],[27,123,48,141],[222,92,230,146],[231,92,239,146],[245,0,249,117],[245,118,249,146],[250,0,255,145],[250,146,261,146],[256,0,261,63],[256,64,261,67],[256,68,258,109],[256,110,257,145],[258,110,261,117],[258,118,261,124],[258,125,261,127],[258,128,261,133],[258,134,261,136],[258,137,261,142],[258,143,261,145],[259,68,261,70],[259,71,261,76],[259,77,261,78],[259,79,261,85],[259,86,261,109],[240,0,240,146],[241,122,244,131],[262,50,266,65],[262,66,266,67],[262,68,266,144],[262,145,266,146],[267,50,272,65],[267,66,272,67],[267,68,272,119],[272,123,293,141],[273,50,277,65],[273,66,277,67],[273,68,277,119],[278,50,280,65],[278,66,280,67],[278,68,280,119],[281,50,285,65],[281,66,285,67],[281,68,285,119],[286,50,289,65],[286,66,289,67],[286,68,289,76],[286,77,289,79],[286,80,289,91],[286,92,289,94],[286,95,289,106],[286,107,289,119],[290,50,293,65],[290,66,293,67],[290,68,293,76],[290,77,293,79],[290,80,293,91],[290,92,293,94],[290,95,293,106],[290,107,293,119],[294,0,346,3],[294,4,297,12],[294,13,297,22],[294,23,297,25],[294,26,297,146],[298,4,298,146],[299,4,304,28],[299,29,304,91],[299,92,304,146],[305,4,313,28],[305,29,313,91],[305,92,313,146],[314,4,322,28],[314,29,322,91],[314,92,322,146],[323,4,331,28],[323,29,331,91],[323,92,331,146],[332,4,340,28],[332,29,340,91],[332,92,340,146],[341,4,349,28],[341,29,349,91],[341,92,349,146],[347,0,349,3],[350,0,391,3],[350,4,358,28],[350,29,358,91],[350,92,358,146],[359,4,367,28],[359,29,367,91],[359,92,367,146],[368,4,376,28],[368,29,376,91],[368,92,376,146],[377,4,385,28],[377,29,385,91],[377,92,385,146],[386,4,394,28],[386,29,394,91],[386,92,394,146],[392,0,394,3],[395,0,436,3],[395,4,403,28],[395,29,403,91],[395,92,403,146],[404,4,412,28],[404,29,412,91],[404,92,412,146],[413,4,421,28],[413,29,421,91],[413,92,421,146],[422,4,430,28],[422,29,430,91],[422,92,430,146],[431,4,439,28],[431,29,439,91],[431,92,439,146],[437,0,439,3],[440,0,481,3],[440,4,448,28],[440,29,448,91],[440,92,448,146],[449,4,457,28],[449,29,457,91],[449,92,457,146],[458,4,466,28],[458,29,466,91],[458,92,466,146],[467,4,475,28],[467,29,475,91],[467,92,475,146],[476,4,484,28],[476,29,484,91],[476,92,484,146],[482,0,484,3],[485,0,485,146],[486,0,489,3],[486,4,489,121],[486,122,489,131],[486,132,489,135],[486,136,489,138],[486,139,489,142],[486,143,489,146],[490,0,494,117],[490,118,494,146],[495,0,500,145],[495,146,506,146],[501,0,506,63],[501,64,506,67],[501,68,503,109],[501,110,502,145],[503,110,506,117],[503,118,506,124],[503,125,506,127],[503,128,506,133],[503,134,506,136],[503,137,506,142],[503,143,506,145],[504,68,506,70],[504,71,506,76],[504,77,506,78],[504,79,506,85],[504,86,506,109],[507,50,511,65],[507,66,511,67],[507,68,511,144],[507,145,511,146],[512,50,517,65],[512,66,517,67],[512,68,517,119],[517,123,538,141],[518,50,522,65],[518,66,522,67],[518,68,522,119],[523,50,525,65],[523,66,525,67],[523,68,525,119],[526,50,530,65],[526,66,530,67],[526,68,530,119],[531,50,534,65],[531,66,534,67],[531,68,534,76],[531,77,534,79],[531,80,534,91],[531,92,534,94],[531,95,534,106],[531,107,534,119],[535,50,538,65],[535,66,538,67],[535,68,538,76],[535,77,538,79],[535,80,538,91],[535,92,538,94],[535,95,538,106],[535,107,538,119],[539,0,591,3],[539,4,542,12],[539,13,542,22],[539,23,542,25],[539,26,542,146],[543,4,543,146],[544,4,549,28],[544,29,549,91],[544,92,549,146],[550,4,558,28],[550,29,558,91],[550,92,558,146],[559,4,567,28],[559,29,567,91],[559,92,567,146],[568,4,576,28],[568,29,576,91],[568,92,576,146],[577,4,585,28],[577,29,585,91],[577,92,585,146],[586,4,594,28],[586,29,594,91],[586,92,594,146],[592,0,594,3],[595,0,636,3],[595,4,603,28],[595,29,603,91],[595,92,603,146],[604,4,612,28],[604,29,612,91],[604,92,612,146],[613,4,621,28],[613,29,621,91],[613,92,621,146],[622,4,630,28],[622,29,630,91],[622,92,630,146],[631,4,639,28],[631,29,639,91],[631,92,639,146],[637,0,639,3],[727,0,729,3],[640,0,681,3],[640,4,648,28],[640,29,648,91],[640,92,648,146],[649,4,657,28],[649,29,657,91],[649,92,657,146],[658,4,666,28],[658,29,666,91],[658,92,666,146],[667,4,675,28],[667,29,675,91],[667,92,675,146],[676,4,684,28],[676,29,684,91],[676,92,684,146],[682,0,684,3],[730,0,730,146],[731,0,734,3],[731,4,734,121],[731,122,734,131],[731,132,734,135],[731,136,734,138],[731,139,734,142],[731,143,734,146],[685,0,726,3],[685,4,693,28],[685,29,693,91],[685,92,693,146],[694,4,702,28],[694,29,702,91],[694,92,702,146],[703,4,711,28],[703,29,711,91],[703,92,711,146],[712,4,720,28],[712,29,720,91],[712,92,720,146],[721,4,729,28],[721,29,729,91],[721,92,729,146],[735,0,739,117],[735,118,739,146],[740,0,745,145],[740,146,751,146],[746,0,751,63],[746,64,751,67],[746,68,748,109],[746,110,747,145],[748,110,751,117],[748,118,751,124],[748,125,751,127],[748,128,751,133],[748,134,751,136],[748,137,751,142],[748,143,751,145],[749,68,751,70],[749,71,751,76],[749,77,751,78],[749,79,751,85],[749,86,751,109],[752,50,756,65],[752,66,756,67],[752,68,756,144],[752,145,756,146],[757,50,762,65],[757,66,762,67],[757,68,762,119],[762,123,783,141],[763,50,767,65],[763,66,767,67],[763,68,767,119],[768,50,770,65],[768,66,770,67],[768,68,770,119],[771,50,775,65],[771,66,775,67],[771,68,775,119],[776,50,779,65],[776,66,779,67],[776,68,779,76],[776,77,779,79],[776,80,779,91],[776,92,779,94],[776,95,779,106],[776,107,779,119],[780,50,783,65],[780,66,783,67],[780,68,783,76],[780,77,783,79],[780,80,783,91],[780,92,783,94],[780,95,783,106],[780,107,783,119],[784,0,836,3],[784,4,787,12],[784,13,787,22],[784,23,787,25],[784,26,787,146],[788,4,788,146],[789,4,794,28],[789,29,794,91],[789,92,794,146],[795,4,803,28],[795,29,803,91],[795,92,803,146],[804,4,812,28],[804,29,812,91],[804,92,812,146],[813,4,821,28],[813,29,821,91],[813,92,821,146],[822,4,830,28],[822,29,830,91],[822,92,830,146],[831,4,839,28],[831,29,839,91],[831,92,839,146],[837,0,839,3],[840,0,881,3],[840,4,848,28],[840,29,848,91],[840,92,848,146],[849,4,857,28],[849,29,857,91],[849,92,857,146],[858,4,866,28],[858,29,866,91],[858,92,866,146],[867,4,875,28],[867,29,875,91],[867,92,875,146],[876,4,884,28],[876,29,884,91],[876,92,884,146],[882,0,884,3],[972,0,974,3],[885,0,926,3],[885,4,893,28],[885,29,893,91],[885,92,893,146],[894,4,902,28],[894,29,902,91],[894,92,902,146],[903,4,911,28],[903,29,911,91],[903,92,911,146],[912,4,920,28],[912,29,920,91],[912,92,920,146],[921,4,929,28],[921,29,929,91],[921,92,929,146],[927,0,929,3],[975,0,975,146],[976,0,979,3],[976,4,979,121],[976,122,979,131],[976,132,979,135],[976,136,979,138],[976,139,979,142],[976,143,979,146],[930,0,971,3],[930,4,938,28],[930,29,938,91],[930,92,938,146],[939,4,947,28],[939,29,947,91],[939,92,947,146],[948,4,956,28],[948,29,956,91],[948,92,956,146],[957,4,965,28],[957,29,965,91],[957,92,965,146],[966,4,974,28],[966,29,974,91],[966,92,974,146]]}
[null,null,null,null,null,null,null,null,null,null,null,null,null,null,null,null,null,null,null,null,null,null,null,null,null,null,null,null,null,null,null,null,null,null,null,null,null,null,null,null,null,null,null,null,null,null,null,null,null,null,null,null,null,null,null,null,null,null,null,null,null,null,null,null,null,null,null,null,null,null,null,null,null,null,null,null,null,null,null,null,null,null,null,null,null,null,null,null,null,null,null,null,null,null,null,null,null,null,null,null,null,null,null,null,null,null,null,null,null,null,null,null,null,null,null,null,null,null,"大阪府育英会提出用"]
[]
[]
[]
[]
["　（Ａ）令和７年度　大阪府育英会予約奨学生推薦者一覧表"]
[]
[]
[]
[]
[]
["公益財団法人大阪府育英会　理事長  様"]
[]
[null,null,null,null,null,null,null,null,null,null,null,null,null,null,null,null,null,null,null,null,null,null,null,null,null,null,null,null,null,null,null,null,null,null,null,null,null,null,null,null,null,null,null,null,null,null,null,null,null,null,null,null,null,null,null,null,null,null,null,null,null,null,null,null,null,null,null,null,null,null,null,null,null,null,null,null,null,null,null,null,null,null,null,null,null,null,null,null,null,null,null,null,null,null,null,null,null,null,null,null,null,null,null,null,null,null,null,null,null,null,"令和",null,null,null,null,null,null,null,"６",null,null,null,null,null,null,"年",null,null,null,null,null,null,null,null,"月",null,null,null,null,null,null,null,null,"日"]
[null,null,null,null,null,null,null,null,null,null,null,null,null,null,null,null,null,null,null,null,null,null,null,null,null,null,null,null,null,null,null,null,null,null,null,null,null,null,null,null,null,null,null,null,null,null,null,null,null,null,null,null,null,null,null,null,null,null,null,null,null,null,null,null,null,null,null,null,"〒",null,null,null,null,null,null,null,null,"－"]
[]
[]
[null,null,null,null,null,null,null,null,null,null,null,null,null,null,null,null,null,null,null,null,null,null,null,null,null,null,null,null,null,null,null,null,null,null,null,null,null,null,null,null,null,null,null,null,null,null,null,null,null,null,"学校所在地"]
[]
[]
[]
[]
[null,null,null,null,null,null,null,null,null,null,null,null,null,null,null,null,null,null,null,null,null,null,null,null,null,null,null,null,null,null,null,null,null,null,null,null,null,null,null,null,null,null,null,null,null,null,null,null,null,null,"学　校　名"]
[]
[]
[]
[]
[null,null,null,null,null,null,null,null,null,null,null,null,null,null,null,null,null,null,null,null,null,null,null,null,null,null,null,null,null,null,null,null,null,null,null,null,null,null,null,null,null,null,null,null,null,null,null,null,null,null,null,null,null,null,null,null,null,null,null,null,null,null,null,null,null,null,null,null,null,null,null,null,null,null,null,null,null,null,null,null,null,null,null,null,null,null,null,null,null,null,null,null,null,null,null,null,null,null,null,null,null,null,null,null,null,null,null,null,null,null,null,null,null,null,null,null,null,null,null,null,null,null,null,"公 印"]
[null,null,null,null,null,null,null,null,null,null,null,null,null,null,null,null,null,null,null,null,null,null,null,null,null,null,null,null,null,null,null,null,null,null,null,null,null,null,null,null,null,null,null,null,null,null,null,null,null,null,"学 校 長 名"]
[]
[]
[]
[]
[null,null,null,null,null,null,null,null,null,null,null,null,null,null,null,null,null,null,null,null,null,null,null,null,null,null,null,null,null,null,null,null,null,null,null,null,null,null,null,null,null,null,null,null,null,null,null,null,null,null,"フ　リ　ガ　ナ"]
[]
[]
[null,null,null,null,null,null,null,null,null,null,null,null,null,null,null,null,null,null,null,null,null,null,null,null,null,null,null,null,null,null,null,null,null,null,null,null,null,null,null,null,null,null,null,null,null,null,null,null,null,null,"担当者氏名"]
[]
[]
[]
[]
[null,null,null,null,null,null,null,null,null,null,null,null,null,null,null,null,null,null,null,null,null,null,null,null,null,null,null,null,null,null,null,null,null,null,null,null,null,null,null,null,null,null,null,null,null,null,null,null,null,null,"電 話 番 号",null,null,null,null,null,null,null,null,null,null,null,null,null,null,null,null,null,null,null,null,null,null,null,null,null,null,"－",null,null,null,null,null,null,null,null,null,null,null,null,null,null,"－"]
[]
[]
[]
[null,null,null,null,null,null,null,null,null,null,null,null,null,null,null,null,null,null,null,null,null,null,null,null,null,null,null,null,null,null,null,null,null,null,null,null,null,null,null,null,null,null,null,null,null,null,null,null,null,null,"ＦＡＸ 番 号",null,null,null,null,null,null,null,null,null,null,null,null,null,null,null,null,null,null,null,null,null,null,null,null,null,null,"－",null,null,null,null,null,null,null,null,null,null,null,null,null,null,"－"]
[]
[]
[]
[null,null,null,null,"下記の",null,null,null,null,null,null,null,null,null,null,null,null,null,null,null,null,null,null,"名",null,null,"については、所定の申込手続書類が不備なく整いましたので貴会の予約奨学生として推薦いたします。"]
[]
[]
[]
[]
[null,null,null,null,"育英会使用欄",null,null,null,null,null,null,null,null,null,null,null,null,null,null,null,null,null,null,null,null,null,null,null,null,"申　 込　 者 　氏　 名",null,null,null,null,null,null,null,null,null,null,null,null,null,null,null,null,null,null,null,null,null,null,null,null,null,null,null,null,null,null,null,null,null,null,null,null,null,null,null,null,null,null,null,null,null,null,null,null,null,null,null,null,null,null,null,null,null,null,null,null,null,null,"備　　　考"]
[]
[]
[]
[]
[]
[]
[]
[]
[]
[]
[]
[]
[]
[]
[]
[]
[]
[]
[]
[]
[]
[]
[]
[]
[]
[]
[]
[]
[]
[]
[]
[]
[]
[]
[]
[]
[]
[]
[]
[]
[]
[]
[]
[]
[]
[]
[]
[5]
[]
[]
[]
[]
[]
[]
[]
[]
[]
[]
[]
[]
[]
[]
[]
[]
[]
[]
[]
[]
[]
[]
[]
[]
[]
[]
[]
[]
[]
[]
[]
[]
[]
[]
[]
[]
[]
[]
[]
[]
[]
[]
[]
[]
[10]
[]
[]
[]
[]
[]
[]
[]
[]
[]
[]
[]
[]
[]
[]
[]
[]
[]
[]
[]
[]
[]
[]
[]
[]
[]
[]
[]
[]
[]
[]
[]
[]
[]
[]
[]
[]
[]
[]
[]
[]
[]
[]
[]
[]
[15]
[]
[]
[]
[]
[]
[]
[]
[]
[]
[]
[]
[]
[]
[]
[]
[]
[]
[]
[]
[]
[]
[]
[]
[]
[]
[]
[]
[]
[]
[]
[]
[]
[]
[]
[]
[]
[]
[]
[]
[]
[]
[]
[]
[]
[20]
[]
[]
[]
[null,null,null,null,"注）育英会提出用は（A）、学校控用は（B）です。",null,null,null,null,null,null,null,null,null,null,null,null,null,null,null,null,null,null,null,null,null,null,null,null,null,null,null,null,null,null,null,null,null,null,null,null,null,null,null,null,null,null,null,null,null,null,null,null,null,null,null,null,null,null,null,null,null,null,null,null,null,null,null,null,null,null,null,null,null,null,null,null,null,null,null,null,null,null,null,null,null,null,null,null,null,null,null,null,null,null,null,null,null,null,null,null,null,null,null,null,null,null,null,null,null,null,null,null,null,null,null,null,null,null,null,null,null,null,null,null,null,null,null,null,null,null,null,1,null,null,null,"／",null,null,null,null,null,null,"頁"]
[]
[]
[]
[null,null,null,null,null,null,null,null,null,null,null,null,null,null,null,null,null,null,null,null,null,null,null,null,null,null,null,null,null,null,null,null,null,null,null,null,null,null,null,null,null,null,null,null,null,null,null,null,null,null,null,null,null,null,null,null,null,null,null,null,null,null,null,null,null,null,null,null,null,null,null,null,null,null,null,null,null,null,null,null,null,null,null,null,null,null,null,null,null,null,null,null,null,null,null,null,null,null,null,null,null,null,null,null,null,null,null,null,null,null,null,null,null,null,null,null,null,null,"大阪府育英会提出用"]
[]
[]
[]
[]
["　（Ａ）令和７年度　大阪府育英会予約奨学生推薦者一覧表"]
[]
[]
[]
[]
[]
["公益財団法人大阪府育英会　理事長  様"]
[]
[null,null,null,null,null,null,null,null,null,null,null,null,null,null,null,null,null,null,null,null,null,null,null,null,null,null,null,null,null,null,null,null,null,null,null,null,null,null,null,null,null,null,null,null,null,null,null,null,null,null,null,null,null,null,null,null,null,null,null,null,null,null,null,null,null,null,null,null,null,null,null,null,null,null,null,null,null,null,null,null,null,null,null,null,null,null,null,null,null,null,null,null,null,null,null,null,null,null,null,null,null,null,null,null,null,null,null,null,null,null,"令和",null,null,null,null,null,null,null,"６",null,null,null,null,null,null,"年",null,null,{"$f":"DY14","v":0},null,null,null,null,null,"月",null,null,{"$f":"EH14","v":0},null,null,null,null,null,"日"]
[null,null,null,null,null,null,null,null,null,null,null,null,null,null,null,null,null,null,null,null,null,null,null,null,null,null,null,null,null,null,null,null,null,null,null,null,null,null,null,null,null,null,null,null,null,null,null,null,null,null,null,null,null,null,null,null,null,null,null,null,null,null,null,null,null,null,null,null,"〒",null,null,{"$f":"BT15","v":0},null,null,null,null,null,"－",null,{"$f":"CB15","v":0}]
[]
[]
[null,null,null,null,null,null,null,null,null,null,null,null,null,null,null,null,null,null,null,null,null,null,null,null,null,null,null,null,null,null,null,null,null,null,null,null,null,null,null,null,null,null,null,null,null,null,null,null,null,null,"学校所在地",null,null,null,null,null,null,null,null,null,null,null,null,null,null,null,null,null,{"$f":"BQ18","v":0}]
[]
[]
[]
[]
[null,null,null,null,null,null,null,null,null,null,null,null,null,null,null,null,null,null,null,null,null,null,null,null,null,null,null,null,null,null,null,null,null,null,null,null,null,null,null,null,null,null,null,null,null,null,null,null,null,null,"学　校　名",null,null,null,null,null,null,null,null,null,null,null,null,null,null,null,null,null,{"$f":"BQ23","v":0}]
[]
[]
[]
[]
[null,null,null,null,null,null,null,null,null,null,null,null,null,null,null,null,null,null,null,null,null,null,null,null,null,null,null,null,null,null,null,null,null,null,null,null,null,null,null,null,null,null,null,null,null,null,null,null,null,null,null,null,null,null,null,null,null,null,null,null,null,null,null,null,null,null,null,null,null,null,null,null,null,null,null,null,null,null,null,null,null,null,null,null,null,null,null,null,null,null,null,null,null,null,null,null,null,null,null,null,null,null,null,null,null,null,null,null,null,null,null,null,null,null,null,null,null,null,null,null,null,null,null,"公 印"]
[null,null,null,null,null,null,null,null,null,null,null,null,null,null,null,null,null,null,null,null,null,null,null,null,null,null,null,null,null,null,null,null,null,null,null,null,null,null,null,null,null,null,null,null,null,null,null,null,null,null,"学 校 長 名",null,null,null,null,null,null,null,null,null,null,null,null,null,null,null,null,null,{"$f":"BQ29","v":0}]
[]
[]
[]
[]
[null,null,null,null,null,null,null,null,null,null,null,null,null,null,null,null,null,null,null,null,null,null,null,null,null,null,null,null,null,null,null,null,null,null,null,null,null,null,null,null,null,null,null,null,null,null,null,null,null,null,"フ　リ　ガ　ナ",null,null,null,null,null,null,null,null,null,null,null,null,null,null,null,null,null,{"$f":"BQ34","v":0}]
[]
[]
[null,null,null,null,null,null,null,null,null,null,null,null,null,null,null,null,null,null,null,null,null,null,null,null,null,null,null,null,null,null,null,null,null,null,null,null,null,null,null,null,null,null,null,null,null,null,null,null,null,null,"担当者氏名",null,null,null,null,null,null,null,null,null,null,null,null,null,null,null,null,null,{"$f":"BQ37","v":0}]
[]
[]
[]
[]
[null,null,null,null,null,null,null,null,null,null,null,null,null,null,null,null,null,null,null,null,null,null,null,null,null,null,null,null,null,null,null,null,null,null,null,null,null,null,null,null,null,null,null,null,null,null,null,null,null,null,"電 話 番 号",null,null,null,null,null,null,null,null,null,null,null,null,null,null,null,null,null,{"$f":"BQ42","v":0},null,null,null,null,null,null,null,null,"－",null,null,{"$f":"CC42","v":0},null,null,null,null,null,null,null,null,null,null,null,"－",null,null,{"$f":"CR42","v":0}]
[]
[]
[]
[null,null,null,null,null,null,null,null,null,null,null,null,null,null,null,null,null,null,null,null,null,null,null,null,null,null,null,null,null,null,null,null,null,null,null,null,null,null,null,null,null,null,null,null,null,null,null,null,null,null,"ＦＡＸ 番 号",null,null,null,null,null,null,null,null,null,null,null,null,null,null,null,null,null,{"$f":"BQ46","v":0},null,null,null,null,null,null,null,null,"－",null,null,{"$f":"CC46","v":0},null,null,null,null,null,null,null,null,null,null,null,"－",null,null,{"$f":"CR46","v":0}]
[]
[]
[]
[null,null,null,null,"下記の",null,null,null,null,null,null,null,null,null,null,null,null,null,null,null,null,null,null,"名",null,null,"については、所定の申込手続書類が不備なく整いましたので貴会の予約奨学生として推薦いたします。"]
[]
[]
[]
[]
[null,null,null,null,"育英会使用欄",null,null,null,null,null,null,null,null,null,null,null,null,null,null,null,null,null,null,null,null,null,null,null,null,"申　 込　 者 　氏　 名",null,null,null,null,null,null,null,null,null,null,null,null,null,null,null,null,null,null,null,null,null,null,null,null,null,null,null,null,null,null,null,null,null,null,null,null,null,null,null,null,null,null,null,null,null,null,null,null,null,null,null,null,null,null,null,null,null,null,null,null,null,null,"備　　　考"]
[]
[]
[]
[]
[]
[]
[]
[]
[]
[]
[]
[]
[]
[]
[]
[]
[]
[]
[]
[]
[]
[]
[]
[]
[]
[]
[]
[]
[]
[]
[]
[]
[]
[]
[]
[]
[]
[]
[]
[]
[]
[]
[]
[]
[]
[]
[]
[5]
[]
[]
[]
[]
[]
[]
[]
[]
[]
[]
[]
[]
[]
[]
[]
[]
[]
[]
[]
[]
[]
[]
[]
[]
[]
[]
[]
[]
[]
[]
[]
[]
[]
[]
[]
[]
[]
[]
[]
[]
[]
[]
[]
[]
[10]
[]
[]
[]
[]
[]
[]
[]
[]
[]
[]
[]
[]
[]
[]
[]
[]
[]
[]
[]
[]
[]
[]
[]
[]
[]
[]
[]
[]
[]
[]
[]
[]
[]
[]
[]
[]
[]
[]
[]
[]
[]
[]
[]
[]
[15]
[]
[]
[]
[]
[]
[]
[]
[]
[]
[]
[]
[]
[]
[]
[]
[]
[]
[]
[]
[]
[]
[]
[]
[]
[]
[]
[]
[]
[]
[]
[]
[]
[]
[]
[]
[]
[]
[]
[]
[]
[]
[]
[]
[]
[20]
[]
[]
[]
[null,null,null,null,"注）育英会提出用は（A）、学校控用は（B）です。",null,null,null,null,null,null,null,null,null,null,null,null,null,null,null,null,null,null,null,null,null,null,null,null,null,null,null,null,null,null,null,null,null,null,null,null,null,null,null,null,null,null,null,null,null,null,null,null,null,null,null,null,null,null,null,null,null,null,null,null,null,null,null,null,null,null,null,null,null,null,null,null,null,null,null,null,null,null,null,null,null,null,null,null,null,null,null,null,null,null,null,null,null,null,null,null,null,null,null,null,null,null,null,null,null,null,null,null,null,null,null,null,null,null,null,null,null,null,null,null,null,null,null,null,null,null,null,2,null,null,null,"／",null,null,null,null,null,null,"頁"]
[]
[]
[]
[null,null,null,null,null,null,null,null,null,null,null,null,null,null,null,null,null,null,null,null,null,null,null,null,null,null,null,null,null,null,null,null,null,null,null,null,null,null,null,null,null,null,null,null,null,null,null,null,null,null,null,null,null,null,null,null,null,null,null,null,null,null,null,null,null,null,null,null,null,null,null,null,null,null,null,null,null,null,null,null,null,null,null,null,null,null,null,null,null,null,null,null,null,null,null,null,null,null,null,null,null,null,null,null,null,null,null,null,null,null,null,null,null,null,null,null,null,null,"大阪府育英会提出用"]
[]
[]
[]
[]
["　（Ａ）令和７年度　大阪府育英会予約奨学生推薦者一覧表"]
[]
[]
[]
[]
[]
["公益財団法人大阪府育英会　理事長  様"]
[]
[null,null,null,null,null,null,null,null,null,null,null,null,null,null,null,null,null,null,null,null,null,null,null,null,null,null,null,null,null,null,null,null,null,null,null,null,null,null,null,null,null,null,null,null,null,null,null,null,null,null,null,null,null,null,null,null,null,null,null,null,null,null,null,null,null,null,null,null,null,null,null,null,null,null,null,null,null,null,null,null,null,null,null,null,null,null,null,null,null,null,null,null,null,null,null,null,null,null,null,null,null,null,null,null,null,null,null,null,null,null,"令和",null,null,null,null,null,null,null,"６",null,null,null,null,null,null,"年",null,null,{"$f":"DY259","v":0},null,null,null,null,null,"月",null,null,{"$f":"EH259","v":0},null,null,null,null,null,"日"]
[null,null,null,null,null,null,null,null,null,null,null,null,null,null,null,null,null,null,null,null,null,null,null,null,null,null,null,null,null,null,null,null,null,null,null,null,null,null,null,null,null,null,null,null,null,null,null,null,null,null,null,null,null,null,null,null,null,null,null,null,null,null,null,null,null,null,null,null,"〒",null,null,{"$f":"BT260","v":0},null,null,null,null,null,"－",null,{"$f":"CB260","v":0}]
[]
[]
[null,null,null,null,null,null,null,null,null,null,null,null,null,null,null,null,null,null,null,null,null,null,null,null,null,null,null,null,null,null,null,null,null,null,null,null,null,null,null,null,null,null,null,null,null,null,null,null,null,null,"学校所在地",null,null,null,null,null,null,null,null,null,null,null,null,null,null,null,null,null,{"$f":"BQ263","v":0}]
[]
[]
[]
[]
[null,null,null,null,null,null,null,null,null,null,null,null,null,null,null,null,null,null,null,null,null,null,null,null,null,null,null,null,null,null,null,null,null,null,null,null,null,null,null,null,null,null,null,null,null,null,null,null,null,null,"学　校　名",null,null,null,null,null,null,null,null,null,null,null,null,null,null,null,null,null,{"$f":"BQ268","v":0}]
[]
[]
[]
[]
[null,null,null,null,null,null,null,null,null,null,null,null,null,null,null,null,null,null,null,null,null,null,null,null,null,null,null,null,null,null,null,null,null,null,null,null,null,null,null,null,null,null,null,null,null,null,null,null,null,null,null,null,null,null,null,null,null,null,null,null,null,null,null,null,null,null,null,null,null,null,null,null,null,null,null,null,null,null,null,null,null,null,null,null,null,null,null,null,null,null,null,null,null,null,null,null,null,null,null,null,null,null,null,null,null,null,null,null,null,null,null,null,null,null,null,null,null,null,null,null,null,null,null,"公 印"]
[null,null,null,null,null,null,null,null,null,null,null,null,null,null,null,null,null,null,null,null,null,null,null,null,null,null,null,null,null,null,null,null,null,null,null,null,null,null,null,null,null,null,null,null,null,null,null,null,null,null,"学 校 長 名",null,null,null,null,null,null,null,null,null,null,null,null,null,null,null,null,null,{"$f":"BQ274","v":0}]
[]
[]
[]
[]
[null,null,null,null,null,null,null,null,null,null,null,null,null,null,null,null,null,null,null,null,null,null,null,null,null,null,null,null,null,null,null,null,null,null,null,null,null,null,null,null,null,null,null,null,null,null,null,null,null,null,"フ　リ　ガ　ナ",null,null,null,null,null,null,null,null,null,null,null,null,null,null,null,null,null,{"$f":"BQ279","v":0}]
[]
[]
[null,null,null,null,null,null,null,null,null,null,null,null,null,null,null,null,null,null,null,null,null,null,null,null,null,null,null,null,null,null,null,null,null,null,null,null,null,null,null,null,null,null,null,null,null,null,null,null,null,null,"担当者氏名",null,null,null,null,null,null,null,null,null,null,null,null,null,null,null,null,null,{"$f":"BQ282","v":0}]
[]
[]
[]
[]
[null,null,null,null,null,null,null,null,null,null,null,null,null,null,null,null,null,null,null,null,null,null,null,null,null,null,null,null,null,null,null,null,null,null,null,null,null,null,null,null,null,null,null,null,null,null,null,null,null,null,"電 話 番 号",null,null,null,null,null,null,null,null,null,null,null,null,null,null,null,null,null,{"$f":"BQ287","v":0},null,null,null,null,null,null,null,null,"－",null,null,{"$f":"CC287","v":0},null,null,null,null,null,null,null,null,null,null,null,"－",null,null,{"$f":"CR287","v":0}]
[]
[]
[]
[null,null,null,null,null,null,null,null,null,null,null,null,null,null,null,null,null,null,null,null,null,null,null,null,null,null,null,null,null,null,null,null,null,null,null,null,null,null,null,null,null,null,null,null,null,null,null,null,null,null,"ＦＡＸ 番 号",null,null,null,null,null,null,null,null,null,null,null,null,null,null,null,null,null,{"$f":"BQ291","v":0},null,null,null,null,null,null,null,null,"－",null,null,{"$f":"CC291","v":0},null,null,null,null,null,null,null,null,null,null,null,"－",null,null,{"$f":"CR291","v":0}]
[]
[]
[]
[null,null,null,null,"下記の",null,null,null,null,null,null,null,null,null,null,null,null,null,null,null,null,null,null,"名",null,null,"については、所定の申込手続書類が不備なく整いましたので貴会の予約奨学生として推薦いたします。"]
[]
[]
[]
[]
[null,null,null,null,"育英会使用欄",null,null,null,null,null,null,null,null,null,null,null,null,null,null,null,null,null,null,null,null,null,null,null,null,"申　 込　 者 　氏　 名",null,null,null,null,null,null,null,null,null,null,null,null,null,null,null,null,null,null,null,null,null,null,null,null,null,null,null,null,null,null,null,null,null,null,null,null,null,null,null,null,null,null,null,null,null,null,null,null,null,null,null,null,null,null,null,null,null,null,null,null,null,null,"備　　　考"]
[]
[]
[]
[]
[]
[]
[]
[]
[]
[]
[]
[]
[]
[]
[]
[]
[]
[]
[]
[]
[]
[]
[]
[]
[]
[]
[]
[]
[]
[]
[]
[]
[]
[]
[]
[]
[]
[]
[]
[]
[]
[]
[]
[]
[]
[]
[]
[5]
[]
[]
[]
[]
[]
[]
[]
[]
[]
[]
[]
[]
[]
[]
[]
[]
[]
[]
[]
[]
[]
[]
[]
[]
[]
[]
[]
[]
[]
[]
[]
[]
[]
[]
[]
[]
[]
[]
[]
[]
[]
[]
[]
[]
[10]
[]
[]
[]
[]
[]
[]
[]
[]
[]
[]
[]
[]
[]
[]
[]
[]
[]
[]
[]
[]
[]
[]
[]
[]
[]
[]
[]
[]
[]
[]
[]
[]
[]
[]
[]
[]
[]
[]
[]
[]
[]
[]
[]
[]
[15]
[]
[]
[]
[]
[]
[]
[]
[]
[]
[]
[]
[]
[]
[]
[]
[]
[]
[]
[]
[]
[]
[]
[]
[]
[]
[]
[]
[]
[]
[]
[]
[]
[]
[]
[]
[]
[]
[]
[]
[]
[]
[]
[]
[]
[20]
[]
[]
[]
[null,null,null,null,"注）育英会提出用は（A）、学校控用は（B）です。",null,null,null,null,null,null,null,null,null,null,null,null,null,null,null,null,null,null,null,null,null,null,null,null,null,null,null,null,null,null,null,null,null,null,null,null,null,null,null,null,null,null,null,null,null,null,null,null,null,null,null,null,null,null,null,null,null,null,null,null,null,null,null,null,null,null,null,null,null,null,null,null,null,null,null,null,null,null,null,null,null,null,null,null,null,null,null,null,null,null,null,null,null,null,null,null,null,null,null,null,null,null,null,null,null,null,null,null,null,null,null,null,null,null,null,null,null,null,null,null,null,null,null,null,null,null,null,3,null,null,null,"／",null,null,null,null,null,null,"頁"]
[]
[]
[]
[null,null,null,null,null,null,null,null,null,null,null,null,null,null,null,null,null,null,null,null,null,null,null,null,null,null,null,null,null,null,null,null,null,null,null,null,null,null,null,null,null,null,null,null,null,null,null,null,null,null,null,null,null,null,null,null,null,null,null,null,null,null,null,null,null,null,null,null,null,null,null,null,null,null,null,null,null,null,null,null,null,null,null,null,null,null,null,null,null,null,null,null,null,null,null,null,null,null,null,null,null,null,null,null,null,null,null,null,null,null,null,null,null,null,null,null,null,null,"大阪府育英会提出用"]
[]
[]
[]
[]
["　（Ａ）令和７年度　大阪府育英会予約奨学生推薦者一覧表"]
[]
[]
[]
[]
[]
["公益財団法人大阪府育英会　理事長  様"]
[]
[null,null,null,null,null,null,null,null,null,null,null,null,null,null,null,null,null,null,null,null,null,null,null,null,null,null,null,null,null,null,null,null,null,null,null,null,null,null,null,null,null,null,null,null,null,null,null,null,null,null,null,null,null,null,null,null,null,null,null,null,null,null,null,null,null,null,null,null,null,null,null,null,null,null,null,null,null,null,null,null,null,null,null,null,null,null,null,null,null,null,null,null,null,null,null,null,null,null,null,null,null,null,null,null,null,null,null,null,null,null,"令和",null,null,null,null,null,null,null,"６",null,null,null,null,null,null,"年",null,null,{"$f":"DY504","v":0},null,null,null,null,null,"月",null,null,{"$f":"EH504","v":0},null,null,null,null,null,"日"]
[null,null,null,null,null,null,null,null,null,null,null,null,null,null,null,null,null,null,null,null,null,null,null,null,null,null,null,null,null,null,null,null,null,null,null,null,null,null,null,null,null,null,null,null,null,null,null,null,null,null,null,null,null,null,null,null,null,null,null,null,null,null,null,null,null,null,null,null,"〒",null,null,{"$f":"BT505","v":0},null,null,null,null,null,"－",null,{"$f":"CB505","v":0}]
[]
[]
[null,null,null,null,null,null,null,null,null,null,null,null,null,null,null,null,null,null,null,null,null,null,null,null,null,null,null,null,null,null,null,null,null,null,null,null,null,null,null,null,null,null,null,null,null,null,null,null,null,null,"学校所在地",null,null,null,null,null,null,null,null,null,null,null,null,null,null,null,null,null,{"$f":"BQ508","v":0}]
[]
[]
[]
[]
[null,null,null,null,null,null,null,null,null,null,null,null,null,null,null,null,null,null,null,null,null,null,null,null,null,null,null,null,null,null,null,null,null,null,null,null,null,null,null,null,null,null,null,null,null,null,null,null,null,null,"学　校　名",null,null,null,null,null,null,null,null,null,null,null,null,null,null,null,null,null,{"$f":"BQ513","v":0}]
[]
[]
[]
[]
[null,null,null,null,null,null,null,null,null,null,null,null,null,null,null,null,null,null,null,null,null,null,null,null,null,null,null,null,null,null,null,null,null,null,null,null,null,null,null,null,null,null,null,null,null,null,null,null,null,null,null,null,null,null,null,null,null,null,null,null,null,null,null,null,null,null,null,null,null,null,null,null,null,null,null,null,null,null,null,null,null,null,null,null,null,null,null,null,null,null,null,null,null,null,null,null,null,null,null,null,null,null,null,null,null,null,null,null,null,null,null,null,null,null,null,null,null,null,null,null,null,null,null,"公 印"]
[null,null,null,null,null,null,null,null,null,null,null,null,null,null,null,null,null,null,null,null,null,null,null,null,null,null,null,null,null,null,null,null,null,null,null,null,null,null,null,null,null,null,null,null,null,null,null,null,null,null,"学 校 長 名",null,null,null,null,null,null,null,null,null,null,null,null,null,null,null,null,null,{"$f":"BQ519","v":0}]
[]
[]
[]
[]
[null,null,null,null,null,null,null,null,null,null,null,null,null,null,null,null,null,null,null,null,null,null,null,null,null,null,null,null,null,null,null,null,null,null,null,null,null,null,null,null,null,null,null,null,null,null,null,null,null,null,"フ　リ　ガ　ナ",null,null,null,null,null,null,null,null,null,null,null,null,null,null,null,null,null,{"$f":"BQ524","v":0}]
[]
[]
[null,null,null,null,null,null,null,null,null,null,null,null,null,null,null,null,null,null,null,null,null,null,null,null,null,null,null,null,null,null,null,null,null,null,null,null,null,null,null,null,null,null,null,null,null,null,null,null,null,null,"担当者氏名",null,null,null,null,null,null,null,null,null,null,null,null,null,null,null,null,null,{"$f":"BQ527","v":0}]
[]
[]
[]
[]
[null,null,null,null,null,null,null,null,null,null,null,null,null,null,null,null,null,null,null,null,null,null,null,null,null,null,null,null,null,null,null,null,null,null,null,null,null,null,null,null,null,null,null,null,null,null,null,null,null,null,"電 話 番 号",null,null,null,null,null,null,null,null,null,null,null,null,null,null,null,null,null,{"$f":"BQ532","v":0},null,null,null,null,null,null,null,null,"－",null,null,{"$f":"CC532","v":0},null,null,null,null,null,null,null,null,null,null,null,"－",null,null,{"$f":"CR532","v":0}]
[]
[]
[]
[null,null,null,null,null,null,null,null,null,null,null,null,null,null,null,null,null,null,null,null,null,null,null,null,null,null,null,null,null,null,null,null,null,null,null,null,null,null,null,null,null,null,null,null,null,null,null,null,null,null,"ＦＡＸ 番 号",null,null,null,null,null,null,null,null,null,null,null,null,null,null,null,null,null,{"$f":"BQ536","v":0},null,null,null,null,null,null,null,null,"－",null,null,{"$f":"CC536","v":0},null,null,null,null,null,null,null,null,null,null,null,"－",null,null,{"$f":"CR536","v":0}]
[]
[]
[]
[null,null,null,null,"下記の",null,null,null,null,null,null,null,null,null,null,null,null,null,null,null,null,null,null,"名",null,null,"については、所定の申込手続書類が不備なく整いましたので貴会の予約奨学生として推薦いたします。"]
[]
[]
[]
[]
[null,null,null,null,"育英会使用欄",null,null,null,null,null,null,null,null,null,null,null,null,null,null,null,null,null,null,null,null,null,null,null,null,"申　 込　 者 　氏　 名",null,null,null,null,null,null,null,null,null,null,null,null,null,null,null,null,null,null,null,null,null,null,null,null,null,null,null,null,null,null,null,null,null,null,null,null,null,null,null,null,null,null,null,null,null,null,null,null,null,null,null,null,null,null,null,null,null,null,null,null,null,null,"備　　　考"]
[]
[]
[]
[]
[]
[]
[]
[]
[]
[]
[]
[]
[]
[]
[]
[]
[]
[]
[]
[]
[]
[]
[]
[]
[]
[]
[]
[]
[]
[]
[]
[]
[]
[]
[]
[]
[]
[]
[]
[]
[]
[]
[]
[]
[]
[]
[]
[5]
[]
[]
[]
[]
[]
[]
[]
[]
[]
[]
[]
[]
[]
[]
[]
[]
[]
[]
[]
[]
[]
[]
[]
[]
[]
[]
[]
[]
[]
[]
[]
[]
[]
[]
[]
[]
[]
[]
[]
[]
[]
[]
[]
[]
[10]
[]
[]
[]
[]
[]
[]
[]
[]
[]
[]
[]
[]
[]
[]
[]
[]
[]
[]
[]
[]
[]
[]
[]
[]
[]
[]
[]
[]
[]
[]
[]
[]
[]
[]
[]
[]
[]
[]
[]
[]
[]
[]
[]
[]
[15]
[]
[]
[]
[]
[]
[]
[]
[]
[]
[]
[]
[]
[]
[]
[]
[]
[]
[]
[]
[]
[]
[]
[]
[]
[]
[]
[]
[]
[]
[]
[]
[]
[]
[]
[]
[]
[]
[]
[]
[]
[]
[]
[]
[]
[20]
[]
[]
[]
[null,null,null,null,"注）育英会提出用は（A）、学校控用は（B）です。",null,null,null,null,null,null,null,null,null,null,null,null,null,null,null,null,null,null,null,null,null,null,null,null,null,null,null,null,null,null,null,null,null,null,null,null,null,null,null,null,null,null,null,null,null,null,null,null,null,null,null,null,null,null,null,null,null,null,null,null,null,null,null,null,null,null,null,null,null,null,null,null,null,null,null,null,null,null,null,null,null,null,null,null,null,null,null,null,null,null,null,null,null,null,null,null,null,null,null,null,null,null,null,null,null,null,null,null,null,null,null,null,null,null,null,null,null,null,null,null,null,null,null,null,null,null,null,4,null,null,null,"／",null,null,null,null,null,null,"頁"]

{"sheet":"学校控用","index":1,"n_rows":978,"n_cols":144,"rows_kept":978,"cut":false,"hidden":false,"merged":[[0,0,4,117],[0,118,4,146],[5,0,10,145],[5,146,16,146],[11,0,16,63],[11,64,16,67],[11,68,13,109],[11,110,12,145],[13,110,16,117],[13,118,16,124],[17,145,21,146],[22,50,27,65],[22,66,27,67],[22,68,27,119],[13,125,16,127],[13,128,16,133],[13,134,16,136],[13,137,16,142],[13,143,16,145],[14,68,16,70],[14,71,16,76],[14,77,16,78],[14,79,16,85],[14,86,16,109],[28,50,32,65],[28,66,32,67],[28,68,32,119],[33,50,35,65],[33,66,35,67],[33,68,35,119],[36,50,40,65],[36,66,40,67],[17,0,44,49],[17,50,21,65],[17,66,21,67],[17,68,21,144],[36,68,40,119],[41,50,44,65],[41,66,44,67],[41,68,44,76],[41,77,44,79],[41,80,44,91],[41,92,44,94],[41,95,44,106],[41,107,44,119],[27,123,48,141],[45,50,48,65],[45,66,48,67],[102,0,104,3],[105,0,146,3],[105,4,113,28],[105,29,113,91],[105,92,113,146],[114,4,122,28],[114,29,122,91],[49,0,101,3],[49,4,52,12],[49,13,52,22],[49,23,52,25],[49,26,52,146],[53,4,53,146],[54,4,59,28],[54,29,59,91],[54,92,59,146],[78,4,86,28],[78,29,86,91],[78,92,86,146],[87,4,95,28],[87,29,95,91],[87,92,95,146],[60,4,68,28],[60,29,68,91],[147,0,149,3],[150,0,191,3],[150,4,158,28],[150,29,158,91],[150,92,158,146],[159,4,167,28],[159,29,167,91],[114,92,122,146],[123,4,131,28],[123,29,131,91],[123,92,131,146],[132,4,140,28],[132,29,140,91],[132,92,140,146],[159,92,167,146],[168,4,176,28],[168,29,176,91],[168,92,176,146],[177,4,185,28],[177,29,185,91],[177,92,185,146],[141,4,149,28],[141,29,149,91],[141,92,149,146],[237,0,239,3],[240,0,240,146],[186,4,194,28],[186,29,194,91],[186,92,194,146],[192,0,194,3],[195,0,236,3],[195,4,203,28],[195,29,203,91],[195,92,203,146],[204,4,212,28],[204,29,212,91],[241,139,244,142],[241,143,244,146],[241,0,244,3],[241,4,244,121],[241,122,244,131],[241,132,244,135],[241,136,244,138],[45,68,48,76],[45,77,48,79],[45,80,48,91],[45,92,48,94],[45,95,48,106],[45,107,48,119],[231,4,239,28],[231,29,239,91],[231,92,239,146],[204,92,212,146],[213,4,221,28],[213,29,221,91],[213,92,221,146],[222,4,230,28],[222,29,230,91],[222,92,230,146],[96,4,104,28],[96,29,104,91],[96,92,104,146],[60,92,68,146],[69,4,77,28],[69,29,77,91],[69,92,77,146],[245,0,249,117],[245,118,249,146],[250,0,255,145],[250,146,261,146],[256,0,261,63],[256,64,261,67],[256,68,258,109],[256,110,257,145],[258,110,261,117],[258,118,261,124],[258,125,261,127],[258,128,261,133],[258,134,261,136],[258,137,261,142],[258,143,261,145],[259,68,261,70],[259,71,261,76],[259,77,261,78],[259,79,261,85],[259,86,261,109],[262,0,289,49],[262,50,266,65],[262,66,266,67],[262,68,266,144],[262,145,266,146],[267,50,272,65],[267,66,272,67],[267,68,272,119],[272,123,293,141],[273,50,277,65],[273,66,277,67],[273,68,277,119],[278,50,280,65],[278,66,280,67],[278,68,280,119],[281,50,285,65],[281,66,285,67],[281,68,285,119],[286,50,289,65],[286,66,289,67],[286,68,289,76],[286,77,289,79],[286,80,289,91],[286,92,289,94],[286,95,289,106],[286,107,289,119],[290,50,293,65],[290,66,293,67],[290,68,293,76],[290,77,293,79],[290,80,293,91],[290,92,293,94],[290,95,293,106],[290,107,293,119],[294,0,346,3],[294,4,297,12],[294,13,297,22],[294,23,297,25],[294,26,297,146],[298,4,298,146],[299,4,304,28],[299,29,304,91],[299,92,304,146],[305,4,313,28],[305,29,313,91],[305,92,313,146],[314,4,322,28],[314,29,322,91],[314,92,322,146],[323,4,331,28],[323,29,331,91],[323,92,331,146],[332,4,340,28],[332,29,340,91],[332,92,340,146],[341,4,349,28],[341,29,349,91],[341,92,349,146],[347,0,349,3],[350,0,391,3],[350,4,358,28],[350,29,358,91],[350,92,358,146],[359,4,367,28],[359,29,367,91],[359,92,367,146],[368,4,376,28],[368,29,376,91],[368,92,376,146],[377,4,385,28],[377,29,385,91],[377,92,385,146],[386,4,394,28],[386,29,394,91],[386,92,394,146],[392,0,394,3],[395,0,436,3],[395,4,403,28],[395,29,403,91],[395,92,403,146],[404,4,412,28],[404,29,412,91],[404,92,412,146],[413,4,421,28],[413,29,421,91],[413,92,421,146],[422,4,430,28],[422,29,430,91],[422,92,430,146],[431,4,439,28],[431,29,439,91],[431,92,439,146],[437,0,439,3],[440,0,481,3],[440,4,448,28],[440,29,448,91],[440,92,448,146],[449,4,457,28],[449,29,457,91],[449,92,457,146],[458,4,466,28],[458,29,466,91],[458,92,466,146],[467,4,475,28],[467,29,475,91],[467,92,475,146],[476,4,484,28],[476,29,484,91],[476,92,484,146],[482,0,484,3],[485,0,485,146],[486,0,489,3],[486,4,489,121],[486,122,489,131],[486,132,489,135],[486,136,489,138],[486,139,489,142],[486,143,489,146],[490,0,494,117],[490,118,494,146],[495,0,500,145],[495,146,506,146],[501,0,506,63],[501,64,506,67],[501,68,503,109],[501,110,502,145],[503,110,506,117],[503,118,506,124],[503,125,506,127],[503,128,506,133],[503,134,506,136],[503,137,506,142],[503,143,506,145],[504,68,506,70],[504,71,506,76],[504,77,506,78],[504,79,506,85],[504,86,506,109],[507,0,534,49],[507,50,511,65],[507,66,511,67],[507,68,511,144],[507,145,511,146],[512,50,517,65],[512,66,517,67],[512,68,517,119],[517,123,538,141],[518,50,522,65],[518,66,522,67],[518,68,522,119],[523,50,525,65],[523,66,525,67],[523,68,525,119],[526,50,530,65],[526,66,530,67],[526,68,530,119],[531,50,534,65],[531,66,534,67],[531,68,534,76],[531,77,534,79],[531,80,534,91],[531,92,534,94],[531,95,534,106],[531,107,534,119],[535,50,538,65],[535,66,538,67],[535,68,538,76],[535,77,538,79],[535,80,538,91],[535,92,538,94],[535,95,538,106],[535,107,538,119],[539,0,591,3],[539,4,542,12],[539,13,542,22],[539,23,542,25],[539,26,542,146],[543,4,543,146],[544,4,549,28],[544,29,549,91],[544,92,549,146],[550,4,558,28],[550,29,558,91],[550,92,558,146],[559,4,567,28],[559,29,567,91],[559,92,567,146],[568,4,576,28],[568,29,576,91],[568,92,576,146],[577,4,585,28],[577,29,585,91],[577,92,585,146],[586,4,594,28],[586,29,594,91],[586,92,594,146],[592,0,594,3],[595,0,636,3],[595,4,603,28],[595,29,603,91],[595,92,603,146],[604,4,612,28],[604,29,612,91],[604,92,612,146],[613,4,621,28],[613,29,621,91],[613,92,621,146],[622,4,630,28],[622,29,630,91],[622,92,630,146],[631,4,639,28],[631,29,639,91],[631,92,639,146],[637,0,639,3],[727,0,729,3],[640,0,681,3],[640,4,648,28],[640,29,648,91],[640,92,648,146],[649,4,657,28],[649,29,657,91],[649,92,657,146],[658,4,666,28],[658,29,666,91],[658,92,666,146],[667,4,675,28],[667,29,675,91],[667,92,675,146],[676,4,684,28],[676,29,684,91],[676,92,684,146],[682,0,684,3],[730,0,730,146],[731,0,734,3],[731,4,734,121],[731,122,734,131],[731,132,734,135],[731,136,734,138],[731,139,734,142],[731,143,734,146],[685,0,726,3],[685,4,693,28],[685,29,693,91],[685,92,693,146],[694,4,702,28],[694,29,702,91],[694,92,702,146],[703,4,711,28],[703,29,711,91],[703,92,711,146],[712,4,720,28],[712,29,720,91],[712,92,720,146],[721,4,729,28],[721,29,729,91],[721,92,729,146],[736,0,740,117],[736,118,740,146],[741,0,746,145],[741,146,752,146],[747,0,752,63],[747,64,752,67],[747,68,749,109],[747,110,748,145],[749,110,752,117],[749,118,752,124],[749,125,752,127],[749,128,752,133],[749,134,752,136],[749,137,752,142],[749,143,752,145],[750,68,752,70],[750,71,752,76],[750,77,752,78],[750,79,752,85],[750,86,752,109],[753,0,780,49],[753,50,757,65],[753,66,757,67],[753,68,757,144],[753,145,757,146],[758,50,763,65],[758,66,763,67],[758,68,763,119],[763,123,784,141],[764,50,768,65],[764,66,768,67],[764,68,768,119],[769,50,771,65],[769,66,771,67],[769,68,771,119],[772,50,776,65],[772,66,776,67],[772,68,776,119],[777,50,780,65],[777,66,780,67],[777,68,780,76],[777,77,780,79],[777,80,780,91],[777,92,780,94],[777,95,780,106],[777,107,780,119],[781,50,784,65],[781,66,784,67],[781,68,784,76],[781,77,784,79],[781,80,784,91],[781,92,784,94],[781,95,784,106],[781,107,784,119],[785,0,837,3],[785,4,788,12],[785,13,788,22],[785,23,788,25],[785,26,788,146],[789,4,789,146],[790,4,795,28],[790,29,795,91],[790,92,795,146],[796,4,804,28],[796,29,804,91],[796,92,804,146],[805,4,813,28],[805,29,813,91],[805,92,813,146],[814,4,822,28],[814,29,822,91],[814,92,822,146],[823,4,831,28],[823,29,831,91],[823,92,831,146],[832,4,840,28],[832,29,840,91],[832,92,840,146],[838,0,840,3],[841,0,882,3],[841,4,849,28],[841,29,849,91],[841,92,849,146],[850,4,858,28],[850,29,858,91],[850,92,858,146],[859,4,867,28],[859,29,867,91],[859,92,867,146],[868,4,876,28],[868,29,876,91],[868,92,876,146],[877,4,885,28],[877,29,885,91],[877,92,885,146],[883,0,885,3],[973,0,975,3],[886,0,927,3],[886,4,894,28],[886,29,894,91],[886,92,894,146],[895,4,903,28],[895,29,903,91],[895,92,903,146],[904,4,912,28],[904,29,912,91],[904,92,912,146],[913,4,921,28],[913,29,921,91],[913,92,921,146],[922,4,930,28],[922,29,930,91],[922,92,930,146],[928,0,930,3],[976,0,976,146],[977,0,980,3],[977,4,980,121],[977,122,980,131],[977,132,980,135],[977,136,980,138],[977,139,980,142],[977,143,980,146],[931,0,972,3],[931,4,939,28],[931,29,939,91],[931,92,939,146],[940,4,948,28],[940,29,948,91],[940,92,948,146],[949,4,957,28],[949,29,957,91],[949,92,957,146],[958,4,966,28],[958,29,966,91],[958,92,966,146],[967,4,975,28],[967,29,975,91],[967,92,975,146]]}
[null,null,null,null,null,null,null,null,null,null,null,null,null,null,null,null,null,null,null,null,null,null,null,null,null,null,null,null,null,null,null,null,null,null,null,null,null,null,null,null,null,null,null,null,null,null,null,null,null,null,null,null,null,null,null,null,null,null,null,null,null,null,null,null,null,null,null,null,null,null,null,null,null,null,null,null,null,null,null,null,null,null,null,null,null,null,null,null,null,null,null,null,null,null,null,null,null,null,null,null,null,null,null,null,null,null,null,null,null,null,null,null,null,null,null,null,null,null,"学校控用"]
[]
[]
[]
[]
["　（B）令和７年度　大阪府育英会予約奨学生推薦者一覧表"]
[]
[]
[]
[]
[]
["公益財団法人大阪府育英会　理事長  様"]
[]
[null,null,null,null,null,null,null,null,null,null,null,null,null,null,null,null,null,null,null,null,null,null,null,null,null,null,null,null,null,null,null,null,null,null,null,null,null,null,null,null,null,null,null,null,null,null,null,null,null,null,null,null,null,null,null,null,null,null,null,null,null,null,null,null,null,null,null,null,null,null,null,null,null,null,null,null,null,null,null,null,null,null,null,null,null,null,null,null,null,null,null,null,null,null,null,null,null,null,null,null,null,null,null,null,null,null,null,null,null,null,"令和",null,null,null,null,null,null,null,"６",null,null,null,null,null,null,"年",null,null,{"$f":"育英会提出用!DY14","v":0},null,null,null,null,null,"月",null,null,{"$f":"育英会提出用!EH14","v":0},null,null,null,null,null,"日"]
[null,null,null,null,null,null,null,null,null,null,null,null,null,null,null,null,null,null,null,null,null,null,null,null,null,null,null,null,null,null,null,null,null,null,null,null,null,null,null,null,null,null,null,null,null,null,null,null,null,null,null,null,null,null,null,null,null,null,null,null,null,null,null,null,null,null,null,null,"〒",null,null,{"$f":"育英会提出用!BT15","v":0},null,null,null,null,null,"－",null,{"$f":"育英会提出用!CB15","v":0}]
[]
[]
[null,null,null,null,null,null,null,null,null,null,null,null,null,null,null,null,null,null,null,null,null,null,null,null,null,null,null,null,null,null,null,null,null,null,null,null,null,null,null,null,null,null,null,null,null,null,null,null,null,null,"学校所在地",null,null,null,null,null,null,null,null,null,null,null,null,null,null,null,null,null,{"$f":"育英会提出用!BQ18","v":0}]
[]
[]
[]
[]
[null,null,null,null,null,null,null,null,null,null,null,null,null,null,null,null,null,null,null,null,null,null,null,null,null,null,null,null,null,null,null,null,null,null,null,null,null,null,null,null,null,null,null,null,null,null,null,null,null,null,"学　校　名",null,null,null,null,null,null,null,null,null,null,null,null,null,null,null,null,null,{"$f":"育英会提出用!BQ23","v":0}]
[]
[]
[]
[]
[null,null,null,null,null,null,null,null,null,null,null,null,null,null,null,null,null,null,null,null,null,null,null,null,null,null,null,null,null,null,null,null,null,null,null,null,null,null,null,null,null,null,null,null,null,null,null,null,null,null,null,null,null,null,null,null,null,null,null,null,null,null,null,null,null,null,null,null,null,null,null,null,null,null,null,null,null,null,null,null,null,null,null,null,null,null,null,null,null,null,null,null,null,null,null,null,null,null,null,null,null,null,null,null,null,null,null,null,null,null,null,null,null,null,null,null,null,null,null,null,null,null,null,"公 印"]
[null,null,null,null,null,null,null,null,null,null,null,null,null,null,null,null,null,null,null,null,null,null,null,null,null,null,null,null,null,null,null,null,null,null,null,null,null,null,null,null,null,null,null,null,null,null,null,null,null,null,"学 校 長 名",null,null,null,null,null,null,null,null,null,null,null,null,null,null,null,null,null,{"$f":"育英会提出用!BQ29","v":0}]
[]
[]
[]
[]
[null,null,null,null,null,null,null,null,null,null,null,null,null,null,null,null,null,null,null,null,null,null,null,null,null,null,null,null,null,null,null,null,null,null,null,null,null,null,null,null,null,null,null,null,null,null,null,null,null,null,"フ　リ　ガ　ナ",null,null,null,null,null,null,null,null,null,null,null,null,null,null,null,null,null,{"$f":"育英会提出用!BQ34","v":0}]
[]
[]
[null,null,null,null,null,null,null,null,null,null,null,null,null,null,null,null,null,null,null,null,null,null,null,null,null,null,null,null,null,null,null,null,null,null,null,null,null,null,null,null,null,null,null,null,null,null,null,null,null,null,"担当者氏名",null,null,null,null,null,null,null,null,null,null,null,null,null,null,null,null,null,{"$f":"育英会提出用!BQ37","v":0}]
[]
[]
[]
[]
[null,null,null,null,null,null,null,null,null,null,null,null,null,null,null,null,null,null,null,null,null,null,null,null,null,null,null,null,null,null,null,null,null,null,null,null,null,null,null,null,null,null,null,null,null,null,null,null,null,null,"電 話 番 号",null,null,null,null,null,null,null,null,null,null,null,null,null,null,null,null,null,{"$f":"育英会提出用!BQ42","v":0},null,null,null,null,null,null,null,null,"－",null,null,{"$f":"育英会提出用!CC42","v":0},null,null,null,null,null,null,null,null,null,null,null,"－",null,null,{"$f":"育英会提出用!CR42","v":0}]
[]
[]
[]
[null,null,null,null,null,null,null,null,null,null,null,null,null,null,null,null,null,null,null,null,null,null,null,null,null,null,null,null,null,null,null,null,null,null,null,null,null,null,null,null,null,null,null,null,null,null,null,null,null,null,"ＦＡＸ 番 号",null,null,null,null,null,null,null,null,null,null,null,null,null,null,null,null,null,{"$f":"育英会提出用!BQ46","v":0},null,null,null,null,null,null,null,null,"－",null,null,{"$f":"育英会提出用!CC46","v":0},null,null,null,null,null,null,null,null,null,null,null,"－",null,null,{"$f":"育英会提出用!CR46","v":0}]
[]
[]
[]
[null,null,null,null,"下記の",null,null,null,null,null,null,null,null,{"$f":"育英会提出用!N50","v":0},null,null,null,null,null,null,null,null,null,"名",null,null,"については、所定の申込手続書類が不備なく整いましたので貴会の予約奨学生として推薦いたします。"]
[]
[]
[]
[]
[null,null,null,null,"育英会使用欄",null,null,null,null,null,null,null,null,null,null,null,null,null,null,null,null,null,null,null,null,null,null,null,null,"申　 込　 者 　氏　 名",null,null,null,null,null,null,null,null,null,null,null,null,null,null,null,null,null,null,null,null,null,null,null,null,null,null,null,null,null,null,null,null,null,null,null,null,null,null,null,null,null,null,null,null,null,null,null,null,null,null,null,null,null,null,null,null,null,null,null,null,null,null,"備　　　考"]
[]
[]
[]
[]
[]
[null,null,null,null,null,null,null,null,null,null,null,null,null,null,null,null,null,null,null,null,null,null,null,null,null,null,null,null,null,{"$f":"育英会提出用!AD61","v":0},null,null,null,null,null,null,null,null,null,null,null,null,null,null,null,null,null,null,null,null,null,null,null,null,null,null,null,null,null,null,null,null,null,null,null,null,null,null,null,null,null,null,null,null,null,null,null,null,null,null,null,null,null,null,null,null,null,null,null,null,null,null,{"$f":"育英会提出用!CO61","v":0}]
[]
[]
[]
[]
[]
[]
[]
[]
[null,null,null,null,null,null,null,null,null,null,null,null,null,null,null,null,null,null,null,null,null,null,null,null,null,null,null,null,null,{"$f":"育英会提出用!AD70","v":0},null,null,null,null,null,null,null,null,null,null,null,null,null,null,null,null,null,null,null,null,null,null,null,null,null,null,null,null,null,null,null,null,null,null,null,null,null,null,null,null,null,null,null,null,null,null,null,null,null,null,null,null,null,null,null,null,null,null,null,null,null,null,{"$f":"育英会提出用!CO70","v":0}]
[]
[]
[]
[]
[]
[]
[]
[]
[null,null,null,null,null,null,null,null,null,null,null,null,null,null,null,null,null,null,null,null,null,null,null,null,null,null,null,null,null,{"$f":"育英会提出用!AD79","v":0},null,null,null,null,null,null,null,null,null,null,null,null,null,null,null,null,null,null,null,null,null,null,null,null,null,null,null,null,null,null,null,null,null,null,null,null,null,null,null,null,null,null,null,null,null,null,null,null,null,null,null,null,null,null,null,null,null,null,null,null,null,null,{"$f":"育英会提出用!CO79","v":0}]
[]
[]
[]
[]
[]
[]
[]
[]
[null,null,null,null,null,null,null,null,null,null,null,null,null,null,null,null,null,null,null,null,null,null,null,null,null,null,null,null,null,{"$f":"育英会提出用!AD88","v":0},null,null,null,null,null,null,null,null,null,null,null,null,null,null,null,null,null,null,null,null,null,null,null,null,null,null,null,null,null,null,null,null,null,null,null,null,null,null,null,null,null,null,null,null,null,null,null,null,null,null,null,null,null,null,null,null,null,null,null,null,null,null,{"$f":"育英会提出用!CO88","v":0}]
[]
[]
[]
[]
[]
[]
[]
[]
[null,null,null,null,null,null,null,null,null,null,null,null,null,null,null,null,null,null,null,null,null,null,null,null,null,null,null,null,null,{"$f":"育英会提出用!AD97","v":0},null,null,null,null,null,null,null,null,null,null,null,null,null,null,null,null,null,null,null,null,null,null,null,null,null,null,null,null,null,null,null,null,null,null,null,null,null,null,null,null,null,null,null,null,null,null,null,null,null,null,null,null,null,null,null,null,null,null,null,null,null,null,{"$f":"育英会提出用!CO97","v":0}]
[]
[]
[]
[]
[]
[5]
[]
[]
[null,null,null,null,null,null,null,null,null,null,null,null,null,null,null,null,null,null,null,null,null,null,null,null,null,null,null,null,null,{"$f":"育英会提出用!AD106","v":0},null,null,null,null,null,null,null,null,null,null,null,null,null,null,null,null,null,null,null,null,null,null,null,null,null,null,null,null,null,null,null,null,null,null,null,null,null,null,null,null,null,null,null,null,null,null,null,null,null,null,null,null,null,null,null,null,null,null,null,null,null,null,{"$f":"育英会提出用!CO106","v":0}]
[]
[]
[]
[]
[]
[]
[]
[]
[null,null,null,null,null,null,null,null,null,null,null,null,null,null,null,null,null,null,null,null,null,null,null,null,null,null,null,null,null,{"$f":"育英会提出用!AD115","v":0},null,null,null,null,null,null,null,null,null,null,null,null,null,null,null,null,null,null,null,null,null,null,null,null,null,null,null,null,null,null,null,null,null,null,null,null,null,null,null,null,null,null,null,null,null,null,null,null,null,null,null,null,null,null,null,null,null,null,null,null,null,null,{"$f":"育英会提出用!CO115","v":0}]
[]
[]
[]
[]
[]
[]
[]
[]
[null,null,null,null,null,null,null,null,null,null,null,null,null,null,null,null,null,null,null,null,null,null,null,null,null,null,null,null,null,{"$f":"育英会提出用!AD124","v":0},null,null,null,null,null,null,null,null,null,null,null,null,null,null,null,null,null,null,null,null,null,null,null,null,null,null,null,null,null,null,null,null,null,null,null,null,null,null,null,null,null,null,null,null,null,null,null,null,null,null,null,null,null,null,null,null,null,null,null,null,null,null,{"$f":"育英会提出用!CO124","v":0}]
[]
[]
[]
[]
[]
[]
[]
[]
[null,null,null,null,null,null,null,null,null,null,null,null,null,null,null,null,null,null,null,null,null,null,null,null,null,null,null,null,null,{"$f":"育英会提出用!AD133","v":0},null,null,null,null,null,null,null,null,null,null,null,null,null,null,null,null,null,null,null,null,null,null,null,null,null,null,null,null,null,null,null,null,null,null,null,null,null,null,null,null,null,null,null,null,null,null,null,null,null,null,null,null,null,null,null,null,null,null,null,null,null,null,{"$f":"育英会提出用!CO133","v":0}]
[]
[]
[]
[]
[]
[]
[]
[]
[null,null,null,null,null,null,null,null,null,null,null,null,null,null,null,null,null,null,null,null,null,null,null,null,null,null,null,null,null,{"$f":"育英会提出用!AD142","v":0},null,null,null,null,null,null,null,null,null,null,null,null,null,null,null,null,null,null,null,null,null,null,null,null,null,null,null,null,null,null,null,null,null,null,null,null,null,null,null,null,null,null,null,null,null,null,null,null,null,null,null,null,null,null,null,null,null,null,null,null,null,null,{"$f":"育英会提出用!CO142","v":0}]
[]
[]
[]
[]
[]
[10]
[]
[]
[null,null,null,null,null,null,null,null,null,null,null,null,null,null,null,null,null,null,null,null,null,null,null,null,null,null,null,null,null,{"$f":"育英会提出用!AD151","v":0},null,null,null,null,null,null,null,null,null,null,null,null,null,null,null,null,null,null,null,null,null,null,null,null,null,null,null,null,null,null,null,null,null,null,null,null,null,null,null,null,null,null,null,null,null,null,null,null,null,null,null,null,null,null,null,null,null,null,null,null,null,null,{"$f":"育英会提出用!CO151","v":0}]
[]
[]
[]
[]
[]
[]
[]
[]
[null,null,null,null,null,null,null,null,null,null,null,null,null,null,null,null,null,null,null,null,null,null,null,null,null,null,null,null,null,{"$f":"育英会提出用!AD160","v":0},null,null,null,null,null,null,null,null,null,null,null,null,null,null,null,null,null,null,null,null,null,null,null,null,null,null,null,null,null,null,null,null,null,null,null,null,null,null,null,null,null,null,null,null,null,null,null,null,null,null,null,null,null,null,null,null,null,null,null,null,null,null,{"$f":"育英会提出用!CO160","v":0}]
[]
[]
[]
[]
[]
[]
[]
[]
[null,null,null,null,null,null,null,null,null,null,null,null,null,null,null,null,null,null,null,null,null,null,null,null,null,null,null,null,null,{"$f":"育英会提出用!AD169","v":0},null,null,null,null,null,null,null,null,null,null,null,null,null,null,null,null,null,null,null,null,null,null,null,null,null,null,null,null,null,null,null,null,null,null,null,null,null,null,null,null,null,null,null,null,null,null,null,null,null,null,null,null,null,null,null,null,null,null,null,null,null,null,{"$f":"育英会提出用!CO169","v":0}]
[]
[]
[]
[]
[]
[]
[]
[]
[null,null,null,null,null,null,null,null,null,null,null,null,null,null,null,null,null,null,null,null,null,null,null,null,null,null,null,null,null,{"$f":"育英会提出用!AD178","v":0},null,null,null,null,null,null,null,null,null,null,null,null,null,null,null,null,null,null,null,null,null,null,null,null,null,null,null,null,null,null,null,null,null,null,null,null,null,null,null,null,null,null,null,null,null,null,null,null,null,null,null,null,null,null,null,null,null,null,null,null,null,null,{"$f":"育英会提出用!CO178","v":0}]
[]
[]
[]
[]
[]
[]
[]
[]
[null,null,null,null,null,null,null,null,null,null,null,null,null,null,null,null,null,null,null,null,null,null,null,null,null,null,null,null,null,{"$f":"育英会提出用!AD187","v":0},null,null,null,null,null,null,null,null,null,null,null,null,null,null,null,null,null,null,null,null,null,null,null,null,null,null,null,null,null,null,null,null,null,null,null,null,null,null,null,null,null,null,null,null,null,null,null,null,null,null,null,null,null,null,null,null,null,null,null,null,null,null,{"$f":"育英会提出用!CO187","v":0}]
[]
[]
[]
[]
[]
[15]
[]
[]
[null,null,null,null,null,null,null,null,null,null,null,null,null,null,null,null,null,null,null,null,null,null,null,null,null,null,null,null,null,{"$f":"育英会提出用!AD196","v":0},null,null,null,null,null,null,null,null,null,null,null,null,null,null,null,null,null,null,null,null,null,null,null,null,null,null,null,null,null,null,null,null,null,null,null,null,null,null,null,null,null,null,null,null,null,null,null,null,null,null,null,null,null,null,null,null,null,null,null,null,null,null,{"$f":"育英会提出用!CO196","v":0}]
[]
[]
[]
[]
[]
[]
[]
[]
[null,null,null,null,null,null,null,null,null,null,null,null,null,null,null,null,null,null,null,null,null,null,null,null,null,null,null,null,null,{"$f":"育英会提出用!AD205","v":0},null,null,null,null,null,null,null,null,null,null,null,null,null,null,null,null,null,null,null,null,null,null,null,null,null,null,null,null,null,null,null,null,null,null,null,null,null,null,null,null,null,null,null,null,null,null,null,null,null,null,null,null,null,null,null,null,null,null,null,null,null,null,{"$f":"育英会提出用!CO205","v":0}]
[]
[]
[]
[]
[]
[]
[]
[]
[null,null,null,null,null,null,null,null,null,null,null,null,null,null,null,null,null,null,null,null,null,null,null,null,null,null,null,null,null,{"$f":"育英会提出用!AD214","v":0},null,null,null,null,null,null,null,null,null,null,null,null,null,null,null,null,null,null,null,null,null,null,null,null,null,null,null,null,null,null,null,null,null,null,null,null,null,null,null,null,null,null,null,null,null,null,null,null,null,null,null,null,null,null,null,null,null,null,null,null,null,null,{"$f":"育英会提出用!CO214","v":0}]
[]
[]
[]
[]
[]
[]
[]
[]
[null,null,null,null,null,null,null,null,null,null,null,null,null,null,null,null,null,null,null,null,null,null,null,null,null,null,null,null,null,{"$f":"育英会提出用!AD223","v":0},null,null,null,null,null,null,null,null,null,null,null,null,null,null,null,null,null,null,null,null,null,null,null,null,null,null,null,null,null,null,null,null,null,null,null,null,null,null,null,null,null,null,null,null,null,null,null,null,null,null,null,null,null,null,null,null,null,null,null,null,null,null,{"$f":"育英会提出用!CO223","v":0}]
[]
[]
[]
[]
[]
[]
[]
[]
[null,null,null,null,null,null,null,null,null,null,null,null,null,null,null,null,null,null,null,null,null,null,null,null,null,null,null,null,null,{"$f":"育英会提出用!AD232","v":0},null,null,null,null,null,null,null,null,null,null,null,null,null,null,null,null,null,null,null,null,null,null,null,null,null,null,null,null,null,null,null,null,null,null,null,null,null,null,null,null,null,null,null,null,null,null,null,null,null,null,null,null,null,null,null,null,null,null,null,null,null,null,{"$f":"育英会提出用!CO232","v":0}]
[]
[]
[]
[]
[]
[20]
[]
[]
[]
[null,null,null,null,"注）育英会提出用は（A）、学校控用は（B）です。",null,null,null,null,null,null,null,null,null,null,null,null,null,null,null,null,null,null,null,null,null,null,null,null,null,null,null,null,null,null,null,null,null,null,null,null,null,null,null,null,null,null,null,null,null,null,null,null,null,null,null,null,null,null,null,null,null,null,null,null,null,null,null,null,null,null,null,null,null,null,null,null,null,null,null,null,null,null,null,null,null,null,null,null,null,null,null,null,null,null,null,null,null,null,null,null,null,null,null,null,null,null,null,null,null,null,null,null,null,null,null,null,null,null,null,null,null,null,null,null,null,null,null,null,null,null,null,{"$f":"育英会提出用!EC242","v":1},null,null,null,"／",null,null,{"$f":"育英会提出用!EJ242","v":0},null,null,null,"頁"]
[]
[]
[]
[null,null,null,null,null,null,null,null,null,null,null,null,null,null,null,null,null,null,null,null,null,null,null,null,null,null,null,null,null,null,null,null,null,null,null,null,null,null,null,null,null,null,null,null,null,null,null,null,null,null,null,null,null,null,null,null,null,null,null,null,null,null,null,null,null,null,null,null,null,null,null,null,null,null,null,null,null,null,null,null,null,null,null,null,null,null,null,null,null,null,null,null,null,null,null,null,null,null,null,null,null,null,null,null,null,null,null,null,null,null,null,null,null,null,null,null,null,null,"学校控用"]
[]
[]
[]
[]
["　（B）令和７年度　大阪府育英会予約奨学生推薦者一覧表"]
[]
[]
[]
[]
[]
["公益財団法人大阪府育英会　理事長  様"]
[]
[null,null,null,null,null,null,null,null,null,null,null,null,null,null,null,null,null,null,null,null,null,null,null,null,null,null,null,null,null,null,null,null,null,null,null,null,null,null,null,null,null,null,null,null,null,null,null,null,null,null,null,null,null,null,null,null,null,null,null,null,null,null,null,null,null,null,null,null,null,null,null,null,null,null,null,null,null,null,null,null,null,null,null,null,null,null,null,null,null,null,null,null,null,null,null,null,null,null,null,null,null,null,null,null,null,null,null,null,null,null,"令和",null,null,null,null,null,null,null,"６",null,null,null,null,null,null,"年",null,null,{"$f":"育英会提出用!DY259","v":0},null,null,null,null,null,"月",null,null,{"$f":"育英会提出用!EH259","v":0},null,null,null,null,null,"日"]
[null,null,null,null,null,null,null,null,null,null,null,null,null,null,null,null,null,null,null,null,null,null,null,null,null,null,null,null,null,null,null,null,null,null,null,null,null,null,null,null,null,null,null,null,null,null,null,null,null,null,null,null,null,null,null,null,null,null,null,null,null,null,null,null,null,null,null,null,"〒",null,null,{"$f":"育英会提出用!BT260","v":0},null,null,null,null,null,"－",null,{"$f":"育英会提出用!CB260","v":0}]
[]
[]
[null,null,null,null,null,null,null,null,null,null,null,null,null,null,null,null,null,null,null,null,null,null,null,null,null,null,null,null,null,null,null,null,null,null,null,null,null,null,null,null,null,null,null,null,null,null,null,null,null,null,"学校所在地",null,null,null,null,null,null,null,null,null,null,null,null,null,null,null,null,null,{"$f":"育英会提出用!BQ263","v":0}]
[]
[]
[]
[]
[null,null,null,null,null,null,null,null,null,null,null,null,null,null,null,null,null,null,null,null,null,null,null,null,null,null,null,null,null,null,null,null,null,null,null,null,null,null,null,null,null,null,null,null,null,null,null,null,null,null,"学　校　名",null,null,null,null,null,null,null,null,null,null,null,null,null,null,null,null,null,{"$f":"育英会提出用!BQ268","v":0}]
[]
[]
[]
[]
[null,null,null,null,null,null,null,null,null,null,null,null,null,null,null,null,null,null,null,null,null,null,null,null,null,null,null,null,null,null,null,null,null,null,null,null,null,null,null,null,null,null,null,null,null,null,null,null,null,null,null,null,null,null,null,null,null,null,null,null,null,null,null,null,null,null,null,null,null,null,null,null,null,null,null,null,null,null,null,null,null,null,null,null,null,null,null,null,null,null,null,null,null,null,null,null,null,null,null,null,null,null,null,null,null,null,null,null,null,null,null,null,null,null,null,null,null,null,null,null,null,null,null,"公 印"]
[null,null,null,null,null,null,null,null,null,null,null,null,null,null,null,null,null,null,null,null,null,null,null,null,null,null,null,null,null,null,null,null,null,null,null,null,null,null,null,null,null,null,null,null,null,null,null,null,null,null,"学 校 長 名",null,null,null,null,null,null,null,null,null,null,null,null,null,null,null,null,null,{"$f":"育英会提出用!BQ274","v":0}]
[]
[]
[]
[]
[null,null,null,null,null,null,null,null,null,null,null,null,null,null,null,null,null,null,null,null,null,null,null,null,null,null,null,null,null,null,null,null,null,null,null,null,null,null,null,null,null,null,null,null,null,null,null,null,null,null,"フ　リ　ガ　ナ",null,null,null,null,null,null,null,null,null,null,null,null,null,null,null,null,null,{"$f":"育英会提出用!BQ279","v":0}]
[]
[]
[null,null,null,null,null,null,null,null,null,null,null,null,null,null,null,null,null,null,null,null,null,null,null,null,null,null,null,null,null,null,null,null,null,null,null,null,null,null,null,null,null,null,null,null,null,null,null,null,null,null,"担当者氏名",null,null,null,null,null,null,null,null,null,null,null,null,null,null,null,null,null,{"$f":"育英会提出用!BQ282","v":0}]
[]
[]
[]
[]
[null,null,null,null,null,null,null,null,null,null,null,null,null,null,null,null,null,null,null,null,null,null,null,null,null,null,null,null,null,null,null,null,null,null,null,null,null,null,null,null,null,null,null,null,null,null,null,null,null,null,"電 話 番 号",null,null,null,null,null,null,null,null,null,null,null,null,null,null,null,null,null,{"$f":"育英会提出用!BQ287","v":0},null,null,null,null,null,null,null,null,"－",null,null,{"$f":"育英会提出用!CC287","v":0},null,null,null,null,null,null,null,null,null,null,null,"－",null,null,{"$f":"育英会提出用!CR287","v":0}]
[]
[]
[]
[null,null,null,null,null,null,null,null,null,null,null,null,null,null,null,null,null,null,null,null,null,null,null,null,null,null,null,null,null,null,null,null,null,null,null,null,null,null,null,null,null,null,null,null,null,null,null,null,null,null,"ＦＡＸ 番 号",null,null,null,null,null,null,null,null,null,null,null,null,null,null,null,null,null,{"$f":"育英会提出用!BQ291","v":0},null,null,null,null,null,null,null,null,"－",null,null,{"$f":"育英会提出用!CC291","v":0},null,null,null,null,null,null,null,null,null,null,null,"－",null,null,{"$f":"育英会提出用!CR291","v":0}]
[]
[]
[]
[null,null,null,null,"下記の",null,null,null,null,null,null,null,null,{"$f":"育英会提出用!N295","v":0},null,null,null,null,null,null,null,null,null,"名",null,null,"については、所定の申込手続書類が不備なく整いましたので貴会の予約奨学生として推薦いたします。"]
[]
[]
[]
[]
[null,null,null,null,"育英会使用欄",null,null,null,null,null,null,null,null,null,null,null,null,null,null,null,null,null,null,null,null,null,null,null,null,"申　 込　 者 　氏　 名",null,null,null,null,null,null,null,null,null,null,null,null,null,null,null,null,null,null,null,null,null,null,null,null,null,null,null,null,null,null,null,null,null,null,null,null,null,null,null,null,null,null,null,null,null,null,null,null,null,null,null,null,null,null,null,null,null,null,null,null,null,null,"備　　　考"]
[]
[]
[]
[]
[]
[null,null,null,null,null,null,null,null,null,null,null,null,null,null,null,null,null,null,null,null,null,null,null,null,null,null,null,null,null,{"$f":"育英会提出用!AD306","v":0},null,null,null,null,null,null,null,null,null,null,null,null,null,null,null,null,null,null,null,null,null,null,null,null,null,null,null,null,null,null,null,null,null,null,null,null,null,null,null,null,null,null,null,null,null,null,null,null,null,null,null,null,null,null,null,null,null,null,null,null,null,null,{"$f":"育英会提出用!CO306","v":0}]
[]
[]
[]
[]
[]
[]
[]
[]
[null,null,null,null,null,null,null,null,null,null,null,null,null,null,null,null,null,null,null,null,null,null,null,null,null,null,null,null,null,{"$f":"育英会提出用!AD315","v":0},null,null,null,null,null,null,null,null,null,null,null,null,null,null,null,null,null,null,null,null,null,null,null,null,null,null,null,null,null,null,null,null,null,null,null,null,null,null,null,null,null,null,null,null,null,null,null,null,null,null,null,null,null,null,null,null,null,null,null,null,null,null,{"$f":"育英会提出用!CO315","v":0}]
[]
[]
[]
[]
[]
[]
[]
[]
[null,null,null,null,null,null,null,null,null,null,null,null,null,null,null,null,null,null,null,null,null,null,null,null,null,null,null,null,null,{"$f":"育英会提出用!AD324","v":0},null,null,null,null,null,null,null,null,null,null,null,null,null,null,null,null,null,null,null,null,null,null,null,null,null,null,null,null,null,null,null,null,null,null,null,null,null,null,null,null,null,null,null,null,null,null,null,null,null,null,null,null,null,null,null,null,null,null,null,null,null,null,{"$f":"育英会提出用!CO324","v":0}]
[]
[]
[]
[]
[]
[]
[]
[]
[null,null,null,null,null,null,null,null,null,null,null,null,null,null,null,null,null,null,null,null,null,null,null,null,null,null,null,null,null,{"$f":"育英会提出用!AD333","v":0},null,null,null,null,null,null,null,null,null,null,null,null,null,null,null,null,null,null,null,null,null,null,null,null,null,null,null,null,null,null,null,null,null,null,null,null,null,null,null,null,null,null,null,null,null,null,null,null,null,null,null,null,null,null,null,null,null,null,null,null,null,null,{"$f":"育英会提出用!CO333","v":0}]
[]
[]
[]
[]
[]
[]
[]
[]
[null,null,null,null,null,null,null,null,null,null,null,null,null,null,null,null,null,null,null,null,null,null,null,null,null,null,null,null,null,{"$f":"育英会提出用!AD342","v":0},null,null,null,null,null,null,null,null,null,null,null,null,null,null,null,null,null,null,null,null,null,null,null,null,null,null,null,null,null,null,null,null,null,null,null,null,null,null,null,null,null,null,null,null,null,null,null,null,null,null,null,null,null,null,null,null,null,null,null,null,null,null,{"$f":"育英会提出用!CO342","v":0}]
[]
[]
[]
[]
[]
[5]
[]
[]
[null,null,null,null,null,null,null,null,null,null,null,null,null,null,null,null,null,null,null,null,null,null,null,null,null,null,null,null,null,{"$f":"育英会提出用!AD351","v":0},null,null,null,null,null,null,null,null,null,null,null,null,null,null,null,null,null,null,null,null,null,null,null,null,null,null,null,null,null,null,null,null,null,null,null,null,null,null,null,null,null,null,null,null,null,null,null,null,null,null,null,null,null,null,null,null,null,null,null,null,null,null,{"$f":"育英会提出用!CO351","v":0}]
[]
[]
[]
[]
[]
[]
[]
[]
[null,null,null,null,null,null,null,null,null,null,null,null,null,null,null,null,null,null,null,null,null,null,null,null,null,null,null,null,null,{"$f":"育英会提出用!AD360","v":0},null,null,null,null,null,null,null,null,null,null,null,null,null,null,null,null,null,null,null,null,null,null,null,null,null,null,null,null,null,null,null,null,null,null,null,null,null,null,null,null,null,null,null,null,null,null,null,null,null,null,null,null,null,null,null,null,null,null,null,null,null,null,{"$f":"育英会提出用!CO360","v":0}]
[]
[]
[]
[]
[]
[]
[]
[]
[null,null,null,null,null,null,null,null,null,null,null,null,null,null,null,null,null,null,null,null,null,null,null,null,null,null,null,null,null,{"$f":"育英会提出用!AD369","v":0},null,null,null,null,null,null,null,null,null,null,null,null,null,null,null,null,null,null,null,null,null,null,null,null,null,null,null,null,null,null,null,null,null,null,null,null,null,null,null,null,null,null,null,null,null,null,null,null,null,null,null,null,null,null,null,null,null,null,null,null,null,null,{"$f":"育英会提出用!CO369","v":0}]
[]
[]
[]
[]
[]
[]
[]
[]
[null,null,null,null,null,null,null,null,null,null,null,null,null,null,null,null,null,null,null,null,null,null,null,null,null,null,null,null,null,{"$f":"育英会提出用!AD378","v":0},null,null,null,null,null,null,null,null,null,null,null,null,null,null,null,null,null,null,null,null,null,null,null,null,null,null,null,null,null,null,null,null,null,null,null,null,null,null,null,null,null,null,null,null,null,null,null,null,null,null,null,null,null,null,null,null,null,null,null,null,null,null,{"$f":"育英会提出用!CO378","v":0}]
[]
[]
[]
[]
[]
[]
[]
[]
[null,null,null,null,null,null,null,null,null,null,null,null,null,null,null,null,null,null,null,null,null,null,null,null,null,null,null,null,null,{"$f":"育英会提出用!AD387","v":0},null,null,null,null,null,null,null,null,null,null,null,null,null,null,null,null,null,null,null,null,null,null,null,null,null,null,null,null,null,null,null,null,null,null,null,null,null,null,null,null,null,null,null,null,null,null,null,null,null,null,null,null,null,null,null,null,null,null,null,null,null,null,{"$f":"育英会提出用!CO387","v":0}]
[]
[]
[]
[]
[]
[10]
[]
[]
[null,null,null,null,null,null,null,null,null,null,null,null,null,null,null,null,null,null,null,null,null,null,null,null,null,null,null,null,null,{"$f":"育英会提出用!AD396","v":0},null,null,null,null,null,null,null,null,null,null,null,null,null,null,null,null,null,null,null,null,null,null,null,null,null,null,null,null,null,null,null,null,null,null,null,null,null,null,null,null,null,null,null,null,null,null,null,null,null,null,null,null,null,null,null,null,null,null,null,null,null,null,{"$f":"育英会提出用!CO396","v":0}]
[]
[]
[]
[]
[]
[]
[]
[]
[null,null,null,null,null,null,null,null,null,null,null,null,null,null,null,null,null,null,null,null,null,null,null,null,null,null,null,null,null,{"$f":"育英会提出用!AD405","v":0},null,null,null,null,null,null,null,null,null,null,null,null,null,null,null,null,null,null,null,null,null,null,null,null,null,null,null,null,null,null,null,null,null,null,null,null,null,null,null,null,null,null,null,null,null,null,null,null,null,null,null,null,null,null,null,null,null,null,null,null,null,null,{"$f":"育英会提出用!CO405","v":0}]
[]
[]
[]
[]
[]
[]
[]
[]
[null,null,null,null,null,null,null,null,null,null,null,null,null,null,null,null,null,null,null,null,null,null,null,null,null,null,null,null,null,{"$f":"育英会提出用!AD414","v":0},null,null,null,null,null,null,null,null,null,null,null,null,null,null,null,null,null,null,null,null,null,null,null,null,null,null,null,null,null,null,null,null,null,null,null,null,null,null,null,null,null,null,null,null,null,null,null,null,null,null,null,null,null,null,null,null,null,null,null,null,null,null,{"$f":"育英会提出用!CO414","v":0}]
[]
[]
[]
[]
[]
[]
[]
[]
[null,null,null,null,null,null,null,null,null,null,null,null,null,null,null,null,null,null,null,null,null,null,null,null,null,null,null,null,null,{"$f":"育英会提出用!AD423","v":0},null,null,null,null,null,null,null,null,null,null,null,null,null,null,null,null,null,null,null,null,null,null,null,null,null,null,null,null,null,null,null,null,null,null,null,null,null,null,null,null,null,null,null,null,null,null,null,null,null,null,null,null,null,null,null,null,null,null,null,null,null,null,{"$f":"育英会提出用!CO423","v":0}]
[]
[]
[]
[]
[]
[]
[]
[]
[null,null,null,null,null,null,null,null,null,null,null,null,null,null,null,null,null,null,null,null,null,null,null,null,null,null,null,null,null,{"$f":"育英会提出用!AD432","v":0},null,null,null,null,null,null,null,null,null,null,null,null,null,null,null,null,null,null,null,null,null,null,null,null,null,null,null,null,null,null,null,null,null,null,null,null,null,null,null,null,null,null,null,null,null,null,null,null,null,null,null,null,null,null,null,null,null,null,null,null,null,null,{"$f":"育英会提出用!CO432","v":0}]
[]
[]
[]
[]
[]
[15]
[]
[]
[null,null,null,null,null,null,null,null,null,null,null,null,null,null,null,null,null,null,null,null,null,null,null,null,null,null,null,null,null,{"$f":"育英会提出用!AD441","v":0},null,null,null,null,null,null,null,null,null,null,null,null,null,null,null,null,null,null,null,null,null,null,null,null,null,null,null,null,null,null,null,null,null,null,null,null,null,null,null,null,null,null,null,null,null,null,null,null,null,null,null,null,null,null,null,null,null,null,null,null,null,null,{"$f":"育英会提出用!CO441","v":0}]
[]
[]
[]
[]
[]
[]
[]
[]
[null,null,null,null,null,null,null,null,null,null,null,null,null,null,null,null,null,null,null,null,null,null,null,null,null,null,null,null,null,{"$f":"育英会提出用!AD450","v":0},null,null,null,null,null,null,null,null,null,null,null,null,null,null,null,null,null,null,null,null,null,null,null,null,null,null,null,null,null,null,null,null,null,null,null,null,null,null,null,null,null,null,null,null,null,null,null,null,null,null,null,null,null,null,null,null,null,null,null,null,null,null,{"$f":"育英会提出用!CO450","v":0}]
[]
[]
[]
[]
[]
[]
[]
[]
[null,null,null,null,null,null,null,null,null,null,null,null,null,null,null,null,null,null,null,null,null,null,null,null,null,null,null,null,null,{"$f":"育英会提出用!AD459","v":0},null,null,null,null,null,null,null,null,null,null,null,null,null,null,null,null,null,null,null,null,null,null,null,null,null,null,null,null,null,null,null,null,null,null,null,null,null,null,null,null,null,null,null,null,null,null,null,null,null,null,null,null,null,null,null,null,null,null,null,null,null,null,{"$f":"育英会提出用!CO459","v":0}]
[]
[]
[]
[]
[]
[]
[]
[]
[null,null,null,null,null,null,null,null,null,null,null,null,null,null,null,null,null,null,null,null,null,null,null,null,null,null,null,null,null,{"$f":"育英会提出用!AD468","v":0},null,null,null,null,null,null,null,null,null,null,null,null,null,null,null,null,null,null,null,null,null,null,null,null,null,null,null,null,null,null,null,null,null,null,null,null,null,null,null,null,null,null,null,null,null,null,null,null,null,null,null,null,null,null,null,null,null,null,null,null,null,null,{"$f":"育英会提出用!CO468","v":0}]
[]
[]
[]
[]
[]
[]
[]
[]
[null,null,null,null,null,null,null,null,null,null,null,null,null,null,null,null,null,null,null,null,null,null,null,null,null,null,null,null,null,{"$f":"育英会提出用!AD477","v":0},null,null,null,null,null,null,null,null,null,null,null,null,null,null,null,null,null,null,null,null,null,null,null,null,null,null,null,null,null,null,null,null,null,null,null,null,null,null,null,null,null,null,null,null,null,null,null,null,null,null,null,null,null,null,null,null,null,null,null,null,null,null,{"$f":"育英会提出用!CO477","v":0}]
[]
[]
[]
[]
[]
[20]
[]
[]
[]
[null,null,null,null,"注）育英会提出用は（A）、学校控用は（B）です。",null,null,null,null,null,null,null,null,null,null,null,null,null,null,null,null,null,null,null,null,null,null,null,null,null,null,null,null,null,null,null,null,null,null,null,null,null,null,null,null,null,null,null,null,null,null,null,null,null,null,null,null,null,null,null,null,null,null,null,null,null,null,null,null,null,null,null,null,null,null,null,null,null,null,null,null,null,null,null,null,null,null,null,null,null,null,null,null,null,null,null,null,null,null,null,null,null,null,null,null,null,null,null,null,null,null,null,null,null,null,null,null,null,null,null,null,null,null,null,null,null,null,null,null,null,null,null,{"$f":"育英会提出用!EC487","v":2},null,null,null,"／",null,null,{"$f":"育英会提出用!EJ487","v":0},null,null,null,"頁"]
[]
[]
[]
[null,null,null,null,null,null,null,null,null,null,null,null,null,null,null,null,null,null,null,null,null,null,null,null,null,null,null,null,null,null,null,null,null,null,null,null,null,null,null,null,null,null,null,null,null,null,null,null,null,null,null,null,null,null,null,null,null,null,null,null,null,null,null,null,null,null,null,null,null,null,null,null,null,null,null,null,null,null,null,null,null,null,null,null,null,null,null,null,null,null,null,null,null,null,null,null,null,null,null,null,null,null,null,null,null,null,null,null,null,null,null,null,null,null,null,null,null,null,"学校控用"]
[]
[]
[]
[]
["　（B）令和７年度　大阪府育英会予約奨学生推薦者一覧表"]
[]
[]
[]
[]
[]
["公益財団法人大阪府育英会　理事長  様"]
[]
[null,null,null,null,null,null,null,null,null,null,null,null,null,null,null,null,null,null,null,null,null,null,null,null,null,null,null,null,null,null,null,null,null,null,null,null,null,null,null,null,null,null,null,null,null,null,null,null,null,null,null,null,null,null,null,null,null,null,null,null,null,null,null,null,null,null,null,null,null,null,null,null,null,null,null,null,null,null,null,null,null,null,null,null,null,null,null,null,null,null,null,null,null,null,null,null,null,null,null,null,null,null,null,null,null,null,null,null,null,null,"令和",null,null,null,null,null,null,null,"６",null,null,null,null,null,null,"年",null,null,{"$f":"育英会提出用!DY504","v":0},null,null,null,null,null,"月",null,null,{"$f":"育英会提出用!EH504","v":0},null,null,null,null,null,"日"]
[null,null,null,null,null,null,null,null,null,null,null,null,null,null,null,null,null,null,null,null,null,null,null,null,null,null,null,null,null,null,null,null,null,null,null,null,null,null,null,null,null,null,null,null,null,null,null,null,null,null,null,null,null,null,null,null,null,null,null,null,null,null,null,null,null,null,null,null,"〒",null,null,{"$f":"育英会提出用!BT505","v":0},null,null,null,null,null,"－",null,{"$f":"育英会提出用!CB505","v":0}]
[]
[]
[null,null,null,null,null,null,null,null,null,null,null,null,null,null,null,null,null,null,null,null,null,null,null,null,null,null,null,null,null,null,null,null,null,null,null,null,null,null,null,null,null,null,null,null,null,null,null,null,null,null,"学校所在地",null,null,null,null,null,null,null,null,null,null,null,null,null,null,null,null,null,{"$f":"育英会提出用!BQ508","v":0}]
[]
[]
[]
[]
[null,null,null,null,null,null,null,null,null,null,null,null,null,null,null,null,null,null,null,null,null,null,null,null,null,null,null,null,null,null,null,null,null,null,null,null,null,null,null,null,null,null,null,null,null,null,null,null,null,null,"学　校　名",null,null,null,null,null,null,null,null,null,null,null,null,null,null,null,null,null,{"$f":"育英会提出用!BQ513","v":0}]
[]
[]
[]
[]
[null,null,null,null,null,null,null,null,null,null,null,null,null,null,null,null,null,null,null,null,null,null,null,null,null,null,null,null,null,null,null,null,null,null,null,null,null,null,null,null,null,null,null,null,null,null,null,null,null,null,null,null,null,null,null,null,null,null,null,null,null,null,null,null,null,null,null,null,null,null,null,null,null,null,null,null,null,null,null,null,null,null,null,null,null,null,null,null,null,null,null,null,null,null,null,null,null,null,null,null,null,null,null,null,null,null,null,null,null,null,null,null,null,null,null,null,null,null,null,null,null,null,null,"公 印"]
[null,null,null,null,null,null,null,null,null,null,null,null,null,null,null,null,null,null,null,null,null,null,null,null,null,null,null,null,null,null,null,null,null,null,null,null,null,null,null,null,null,null,null,null,null,null,null,null,null,null,"学 校 長 名",null,null,null,null,null,null,null,null,null,null,null,null,null,null,null,null,null,{"$f":"育英会提出用!BQ519","v":0}]
[]
[]
[]
[]
[null,null,null,null,null,null,null,null,null,null,null,null,null,null,null,null,null,null,null,null,null,null,null,null,null,null,null,null,null,null,null,null,null,null,null,null,null,null,null,null,null,null,null,null,null,null,null,null,null,null,"フ　リ　ガ　ナ",null,null,null,null,null,null,null,null,null,null,null,null,null,null,null,null,null,{"$f":"育英会提出用!BQ524","v":0}]
[]
[]
[null,null,null,null,null,null,null,null,null,null,null,null,null,null,null,null,null,null,null,null,null,null,null,null,null,null,null,null,null,null,null,null,null,null,null,null,null,null,null,null,null,null,null,null,null,null,null,null,null,null,"担当者氏名",null,null,null,null,null,null,null,null,null,null,null,null,null,null,null,null,null,{"$f":"育英会提出用!BQ527","v":0}]
[]
[]
[]
[]
[null,null,null,null,null,null,null,null,null,null,null,null,null,null,null,null,null,null,null,null,null,null,null,null,null,null,null,null,null,null,null,null,null,null,null,null,null,null,null,null,null,null,null,null,null,null,null,null,null,null,"電 話 番 号",null,null,null,null,null,null,null,null,null,null,null,null,null,null,null,null,null,{"$f":"育英会提出用!BQ532","v":0},null,null,null,null,null,null,null,null,"－",null,null,{"$f":"育英会提出用!CC532","v":0},null,null,null,null,null,null,null,null,null,null,null,"－",null,null,{"$f":"育英会提出用!CR532","v":0}]
[]
[]
[]
[null,null,null,null,null,null,null,null,null,null,null,null,null,null,null,null,null,null,null,null,null,null,null,null,null,null,null,null,null,null,null,null,null,null,null,null,null,null,null,null,null,null,null,null,null,null,null,null,null,null,"ＦＡＸ 番 号",null,null,null,null,null,null,null,null,null,null,null,null,null,null,null,null,null,{"$f":"育英会提出用!BQ536","v":0},null,null,null,null,null,null,null,null,"－",null,null,{"$f":"育英会提出用!CC536","v":0},null,null,null,null,null,null,null,null,null,null,null,"－",null,null,{"$f":"育英会提出用!CR536","v":0}]
[]
[]
[]
[null,null,null,null,"下記の",null,null,null,null,null,null,null,null,{"$f":"育英会提出用!N540","v":0},null,null,null,null,null,null,null,null,null,"名",null,null,"については、所定の申込手続書類が不備なく整いましたので貴会の予約奨学生として推薦いたします。"]
[]
[]
[]
[]
[null,null,null,null,"育英会使用欄",null,null,null,null,null,null,null,null,null,null,null,null,null,null,null,null,null,null,null,null,null,null,null,null,"申　 込　 者 　氏　 名",null,null,null,null,null,null,null,null,null,null,null,null,null,null,null,null,null,null,null,null,null,null,null,null,null,null,null,null,null,null,null,null,null,null,null,null,null,null,null,null,null,null,null,null,null,null,null,null,null,null,null,null,null,null,null,null,null,null,null,null,null,null,"備　　　考"]
[]
[]
[]
[]
[]
[null,null,null,null,null,null,null,null,null,null,null,null,null,null,null,null,null,null,null,null,null,null,null,null,null,null,null,null,null,{"$f":"育英会提出用!AD551","v":0},null,null,null,null,null,null,null,null,null,null,null,null,null,null,null,null,null,null,null,null,null,null,null,null,null,null,null,null,null,null,null,null,null,null,null,null,null,null,null,null,null,null,null,null,null,null,null,null,null,null,null,null,null,null,null,null,null,null,null,null,null,null,{"$f":"育英会提出用!CO551","v":0}]
[]
[]
[]
[]
[]
[]
[]
[]
[null,null,null,null,null,null,null,null,null,null,null,null,null,null,null,null,null,null,null,null,null,null,null,null,null,null,null,null,null,{"$f":"育英会提出用!AD560","v":0},null,null,null,null,null,null,null,null,null,null,null,null,null,null,null,null,null,null,null,null,null,null,null,null,null,null,null,null,null,null,null,null,null,null,null,null,null,null,null,null,null,null,null,null,null,null,null,null,null,null,null,null,null,null,null,null,null,null,null,null,null,null,{"$f":"育英会提出用!CO560","v":0}]
[]
[]
[]
[]
[]
[]
[]
[]
[null,null,null,null,null,null,null,null,null,null,null,null,null,null,null,null,null,null,null,null,null,null,null,null,null,null,null,null,null,{"$f":"育英会提出用!AD569","v":0},null,null,null,null,null,null,null,null,null,null,null,null,null,null,null,null,null,null,null,null,null,null,null,null,null,null,null,null,null,null,null,null,null,null,null,null,null,null,null,null,null,null,null,null,null,null,null,null,null,null,null,null,null,null,null,null,null,null,null,null,null,null,{"$f":"育英会提出用!CO569","v":0}]
[]
[]
[]
[]
[]
[]
[]
[]
[null,null,null,null,null,null,null,null,null,null,null,null,null,null,null,null,null,null,null,null,null,null,null,null,null,null,null,null,null,{"$f":"育英会提出用!AD578","v":0},null,null,null,null,null,null,null,null,null,null,null,null,null,null,null,null,null,null,null,null,null,null,null,null,null,null,null,null,null,null,null,null,null,null,null,null,null,null,null,null,null,null,null,null,null,null,null,null,null,null,null,null,null,null,null,null,null,null,null,null,null,null,{"$f":"育英会提出用!CO578","v":0}]
[]
[]
[]
[]
[]
[]
[]
[]
[null,null,null,null,null,null,null,null,null,null,null,null,null,null,null,null,null,null,null,null,null,null,null,null,null,null,null,null,null,{"$f":"育英会提出用!AD587","v":0},null,null,null,null,null,null,null,null,null,null,null,null,null,null,null,null,null,null,null,null,null,null,null,null,null,null,null,null,null,null,null,null,null,null,null,null,null,null,null,null,null,null,null,null,null,null,null,null,null,null,null,null,null,null,null,null,null,null,null,null,null,null,{"$f":"育英会提出用!CO587","v":0}]
[]
[]
[]
[]
[]
[5]
[]
[]
[null,null,null,null,null,null,null,null,null,null,null,null,null,null,null,null,null,null,null,null,null,null,null,null,null,null,null,null,null,{"$f":"育英会提出用!AD596","v":0},null,null,null,null,null,null,null,null,null,null,null,null,null,null,null,null,null,null,null,null,null,null,null,null,null,null,null,null,null,null,null,null,null,null,null,null,null,null,null,null,null,null,null,null,null,null,null,null,null,null,null,null,null,null,null,null,null,null,null,null,null,null,{"$f":"育英会提出用!CO596","v":0}]
[]
[]
[]
[]
[]
[]
[]
[]
[null,null,null,null,null,null,null,null,null,null,null,null,null,null,null,null,null,null,null,null,null,null,null,null,null,null,null,null,null,{"$f":"育英会提出用!AD605","v":0},null,null,null,null,null,null,null,null,null,null,null,null,null,null,null,null,null,null,null,null,null,null,null,null,null,null,null,null,null,null,null,null,null,null,null,null,null,null,null,null,null,null,null,null,null,null,null,null,null,null,null,null,null,null,null,null,null,null,null,null,null,null,{"$f":"育英会提出用!CO605","v":0}]
[]
[]
[]
[]
[]
[]
[]
[]
[null,null,null,null,null,null,null,null,null,null,null,null,null,null,null,null,null,null,null,null,null,null,null,null,null,null,null,null,null,{"$f":"育英会提出用!AD614","v":0},null,null,null,null,null,null,null,null,null,null,null,null,null,null,null,null,null,null,null,null,null,null,null,null,null,null,null,null,null,null,null,null,null,null,null,null,null,null,null,null,null,null,null,null,null,null,null,null,null,null,null,null,null,null,null,null,null,null,null,null,null,null,{"$f":"育英会提出用!CO614","v":0}]
[]
[]
[]
[]
[]
[]
[]
[]
[null,null,null,null,null,null,null,null,null,null,null,null,null,null,null,null,null,null,null,null,null,null,null,null,null,null,null,null,null,{"$f":"育英会提出用!AD623","v":0},null,null,null,null,null,null,null,null,null,null,null,null,null,null,null,null,null,null,null,null,null,null,null,null,null,null,null,null,null,null,null,null,null,null,null,null,null,null,null,null,null,null,null,null,null,null,null,null,null,null,null,null,null,null,null,null,null,null,null,null,null,null,{"$f":"育英会提出用!CO623","v":0}]
[]
[]
[]
[]
[]
[]
[]
[]
[null,null,null,null,null,null,null,null,null,null,null,null,null,null,null,null,null,null,null,null,null,null,null,null,null,null,null,null,null,{"$f":"育英会提出用!AD632","v":0},null,null,null,null,null,null,null,null,null,null,null,null,null,null,null,null,null,null,null,null,null,null,null,null,null,null,null,null,null,null,null,null,null,null,null,null,null,null,null,null,null,null,null,null,null,null,null,null,null,null,null,null,null,null,null,null,null,null,null,null,null,null,{"$f":"育英会提出用!CO632","v":0}]
[]
[]
[]
[]
[]
[10]
[]
[]
[null,null,null,null,null,null,null,null,null,null,null,null,null,null,null,null,null,null,null,null,null,null,null,null,null,null,null,null,null,{"$f":"育英会提出用!AD641","v":0},null,null,null,null,null,null,null,null,null,null,null,null,null,null,null,null,null,null,null,null,null,null,null,null,null,null,null,null,null,null,null,null,null,null,null,null,null,null,null,null,null,null,null,null,null,null,null,null,null,null,null,null,null,null,null,null,null,null,null,null,null,null,{"$f":"育英会提出用!CO641","v":0}]
[]
[]
[]
[]
[]
[]
[]
[]
[null,null,null,null,null,null,null,null,null,null,null,null,null,null,null,null,null,null,null,null,null,null,null,null,null,null,null,null,null,{"$f":"育英会提出用!AD650","v":0},null,null,null,null,null,null,null,null,null,null,null,null,null,null,null,null,null,null,null,null,null,null,null,null,null,null,null,null,null,null,null,null,null,null,null,null,null,null,null,null,null,null,null,null,null,null,null,null,null,null,null,null,null,null,null,null,null,null,null,null,null,null,{"$f":"育英会提出用!CO650","v":0}]
[]
[]
[]
[]
[]
[]
[]
[]
[null,null,null,null,null,null,null,null,null,null,null,null,null,null,null,null,null,null,null,null,null,null,null,null,null,null,null,null,null,{"$f":"育英会提出用!AD659","v":0},null,null,null,null,null,null,null,null,null,null,null,null,null,null,null,null,null,null,null,null,null,null,null,null,null,null,null,null,null,null,null,null,null,null,null,null,null,null,null,null,null,null,null,null,null,null,null,null,null,null,null,null,null,null,null,null,null,null,null,null,null,null,{"$f":"育英会提出用!CO659","v":0}]
[]
[]
[]
[]
[]
[]
[]
[]
[null,null,null,null,null,null,null,null,null,null,null,null,null,null,null,null,null,null,null,null,null,null,null,null,null,null,null,null,null,{"$f":"育英会提出用!AD668","v":0},null,null,null,null,null,null,null,null,null,null,null,null,null,null,null,null,null,null,null,null,null,null,null,null,null,null,null,null,null,null,null,null,null,null,null,null,null,null,null,null,null,null,null,null,null,null,null,null,null,null,null,null,null,null,null,null,null,null,null,null,null,null,{"$f":"育英会提出用!CO668","v":0}]
[]
[]
[]
[]
[]
[]
[]
[]
[null,null,null,null,null,null,null,null,null,null,null,null,null,null,null,null,null,null,null,null,null,null,null,null,null,null,null,null,null,{"$f":"育英会提出用!AD677","v":0},null,null,null,null,null,null,null,null,null,null,null,null,null,null,null,null,null,null,null,null,null,null,null,null,null,null,null,null,null,null,null,null,null,null,null,null,null,null,null,null,null,null,null,null,null,null,null,null,null,null,null,null,null,null,null,null,null,null,null,null,null,null,{"$f":"育英会提出用!CO677","v":0}]
[]
[]
[]
[]
[]
[15]
[]
[]
[null,null,null,null,null,null,null,null,null,null,null,null,null,null,null,null,null,null,null,null,null,null,null,null,null,null,null,null,null,{"$f":"育英会提出用!AD686","v":0},null,null,null,null,null,null,null,null,null,null,null,null,null,null,null,null,null,null,null,null,null,null,null,null,null,null,null,null,null,null,null,null,null,null,null,null,null,null,null,null,null,null,null,null,null,null,null,null,null,null,null,null,null,null,null,null,null,null,null,null,null,null,{"$f":"育英会提出用!CO686","v":0}]
[]
[]
[]
[]
[]
[]
[]
[]
[null,null,null,null,null,null,null,null,null,null,null,null,null,null,null,null,null,null,null,null,null,null,null,null,null,null,null,null,null,{"$f":"育英会提出用!AD695","v":0},null,null,null,null,null,null,null,null,null,null,null,null,null,null,null,null,null,null,null,null,null,null,null,null,null,null,null,null,null,null,null,null,null,null,null,null,null,null,null,null,null,null,null,null,null,null,null,null,null,null,null,null,null,null,null,null,null,null,null,null,null,null,{"$f":"育英会提出用!CO695","v":0}]
[]
[]
[]
[]
[]
[]
[]
[]
[null,null,null,null,null,null,null,null,null,null,null,null,null,null,null,null,null,null,null,null,null,null,null,null,null,null,null,null,null,{"$f":"育英会提出用!AD704","v":0},null,null,null,null,null,null,null,null,null,null,null,null,null,null,null,null,null,null,null,null,null,null,null,null,null,null,null,null,null,null,null,null,null,null,null,null,null,null,null,null,null,null,null,null,null,null,null,null,null,null,null,null,null,null,null,null,null,null,null,null,null,null,{"$f":"育英会提出用!CO704","v":0}]
[]
[]
[]
[]
[]
[]
[]
[]
[null,null,null,null,null,null,null,null,null,null,null,null,null,null,null,null,null,null,null,null,null,null,null,null,null,null,null,null,null,{"$f":"育英会提出用!AD713","v":0},null,null,null,null,null,null,null,null,null,null,null,null,null,null,null,null,null,null,null,null,null,null,null,null,null,null,null,null,null,null,null,null,null,null,null,null,null,null,null,null,null,null,null,null,null,null,null,null,null,null,null,null,null,null,null,null,null,null,null,null,null,null,{"$f":"育英会提出用!CO713","v":0}]
[]
[]
[]
[]
[]
[]
[]
[]
[null,null,null,null,null,null,null,null,null,null,null,null,null,null,null,null,null,null,null,null,null,null,null,null,null,null,null,null,null,{"$f":"育英会提出用!AD722","v":0},null,null,null,null,null,null,null,null,null,null,null,null,null,null,null,null,null,null,null,null,null,null,null,null,null,null,null,null,null,null,null,null,null,null,null,null,null,null,null,null,null,null,null,null,null,null,null,null,null,null,null,null,null,null,null,null,null,null,null,null,null,null,{"$f":"育英会提出用!CO722","v":0}]
[]
[]
[]
[]
[]
[20]
[]
[]
[]
[null,null,null,null,"注）育英会提出用は（A）、学校控用は（B）です。",null,null,null,null,null,null,null,null,null,null,null,null,null,null,null,null,null,null,null,null,null,null,null,null,null,null,null,null,null,null,null,null,null,null,null,null,null,null,null,null,null,null,null,null,null,null,null,null,null,null,null,null,null,null,null,null,null,null,null,null,null,null,null,null,null,null,null,null,null,null,null,null,null,null,null,null,null,null,null,null,null,null,null,null,null,null,null,null,null,null,null,null,null,null,null,null,null,null,null,null,null,null,null,null,null,null,null,null,null,null,null,null,null,null,null,null,null,null,null,null,null,null,null,null,null,null,null,{"$f":"育英会提出用!EC732","v":3},null,null,null,"／",null,null,{"$f":"育英会提出用!EJ732","v":0},null,null,null,"頁"]
[]
[]
[]
[]
[null,null,null,null,null,null,null,null,null,null,null,null,null,null,null,null,null,null,null,null,null,null,null,null,null,null,null,null,null,null,null,null,null,null,null,null,null,null,null,null,null,null,null,null,null,null,null,null,null,null,null,null,null,null,null,null,null,null,null,null,null,null,null,null,null,null,null,null,null,null,null,null,null,null,null,null,null,null,null,null,null,null,null,null,null,null,null,null,null,null,null,null,null,null,null,null,null,null,null,null,null,null,null,null,null,null,null,null,null,null,null,null,null,null,null,null,null,null,"学校控用"]
[]
[]
[]
[]
["　（B）令和７年度　大阪府育英会予約奨学生推薦者一覧表"]
[]
[]
[]
[]
[]
["公益財団法人大阪府育英会　理事長  様"]
[]
[null,null,null,null,null,null,null,null,null,null,null,null,null,null,null,null,null,null,null,null,null,null,null,null,null,null,null,null,null,null,null,null,null,null,null,null,null,null,null,null,null,null,null,null,null,null,null,null,null,null,null,null,null,null,null,null,null,null,null,null,null,null,null,null,null,null,null,null,null,null,null,null,null,null,null,null,null,null,null,null,null,null,null,null,null,null,null,null,null,null,null,null,null,null,null,null,null,null,null,null,null,null,null,null,null,null,null,null,null,null,"令和",null,null,null,null,null,null,null,"６",null,null,null,null,null,null,"年",null,null,{"$f":"育英会提出用!DY750","v":0},null,null,null,null,null,"月",null,null,{"$f":"育英会提出用!EH750","v":0},null,null,null,null,null,"日"]
[null,null,null,null,null,null,null,null,null,null,null,null,null,null,null,null,null,null,null,null,null,null,null,null,null,null,null,null,null,null,null,null,null,null,null,null,null,null,null,null,null,null,null,null,null,null,null,null,null,null,null,null,null,null,null,null,null,null,null,null,null,null,null,null,null,null,null,null,"〒",null,null,{"$f":"育英会提出用!BT751","v":0},null,null,null,null,null,"－",null,{"$f":"育英会提出用!CB751","v":0}]
[]
[]
[null,null,null,null,null,null,null,null,null,null,null,null,null,null,null,null,null,null,null,null,null,null,null,null,null,null,null,null,null,null,null,null,null,null,null,null,null,null,null,null,null,null,null,null,null,null,null,null,null,null,"学校所在地",null,null,null,null,null,null,null,null,null,null,null,null,null,null,null,null,null,{"$f":"育英会提出用!BQ754","v":0}]
[]
[]
[]
[]
[null,null,null,null,null,null,null,null,null,null,null,null,null,null,null,null,null,null,null,null,null,null,null,null,null,null,null,null,null,null,null,null,null,null,null,null,null,null,null,null,null,null,null,null,null,null,null,null,null,null,"学　校　名",null,null,null,null,null,null,null,null,null,null,null,null,null,null,null,null,null,{"$f":"育英会提出用!BQ759","v":0}]
[]
[]
[]
[]
[null,null,null,null,null,null,null,null,null,null,null,null,null,null,null,null,null,null,null,null,null,null,null,null,null,null,null,null,null,null,null,null,null,null,null,null,null,null,null,null,null,null,null,null,null,null,null,null,null,null,null,null,null,null,null,null,null,null,null,null,null,null,null,null,null,null,null,null,null,null,null,null,null,null,null,null,null,null,null,null,null,null,null,null,null,null,null,null,null,null,null,null,null,null,null,null,null,null,null,null,null,null,null,null,null,null,null,null,null,null,null,null,null,null,null,null,null,null,null,null,null,null,null,"公 印"]
[null,null,null,null,null,null,null,null,null,null,null,null,null,null,null,null,null,null,null,null,null,null,null,null,null,null,null,null,null,null,null,null,null,null,null,null,null,null,null,null,null,null,null,null,null,null,null,null,null,null,"学 校 長 名",null,null,null,null,null,null,null,null,null,null,null,null,null,null,null,null,null,{"$f":"育英会提出用!BQ765","v":0}]
[]
[]
[]
[]
[null,null,null,null,null,null,null,null,null,null,null,null,null,null,null,null,null,null,null,null,null,null,null,null,null,null,null,null,null,null,null,null,null,null,null,null,null,null,null,null,null,null,null,null,null,null,null,null,null,null,"フ　リ　ガ　ナ",null,null,null,null,null,null,null,null,null,null,null,null,null,null,null,null,null,{"$f":"育英会提出用!BQ770","v":0}]
[]
[]
[null,null,null,null,null,null,null,null,null,null,null,null,null,null,null,null,null,null,null,null,null,null,null,null,null,null,null,null,null,null,null,null,null,null,null,null,null,null,null,null,null,null,null,null,null,null,null,null,null,null,"担当者氏名",null,null,null,null,null,null,null,null,null,null,null,null,null,null,null,null,null,{"$f":"育英会提出用!BQ773","v":0}]
[]
[]
[]
[]
[null,null,null,null,null,null,null,null,null,null,null,null,null,null,null,null,null,null,null,null,null,null,null,null,null,null,null,null,null,null,null,null,null,null,null,null,null,null,null,null,null,null,null,null,null,null,null,null,null,null,"電 話 番 号",null,null,null,null,null,null,null,null,null,null,null,null,null,null,null,null,null,{"$f":"育英会提出用!BQ778","v":0},null,null,null,null,null,null,null,null,"－",null,null,{"$f":"育英会提出用!CC778","v":0},null,null,null,null,null,null,null,null,null,null,null,"－",null,null,{"$f":"育英会提出用!CR778","v":0}]
[]
[]
[]
[null,null,null,null,null,null,null,null,null,null,null,null,null,null,null,null,null,null,null,null,null,null,null,null,null,null,null,null,null,null,null,null,null,null,null,null,null,null,null,null,null,null,null,null,null,null,null,null,null,null,"ＦＡＸ 番 号",null,null,null,null,null,null,null,null,null,null,null,null,null,null,null,null,null,{"$f":"育英会提出用!BQ782","v":0},null,null,null,null,null,null,null,null,"－",null,null,{"$f":"育英会提出用!CC782","v":0},null,null,null,null,null,null,null,null,null,null,null,"－",null,null,{"$f":"育英会提出用!CR782","v":0}]
[]
[]
[]
[null,null,null,null,"下記の",null,null,null,null,null,null,null,null,{"$f":"育英会提出用!N786","v":0},null,null,null,null,null,null,null,null,null,"名",null,null,"については、所定の申込手続書類が不備なく整いましたので貴会の予約奨学生として推薦いたします。"]
[]
[]
[]
[]
[null,null,null,null,"育英会使用欄",null,null,null,null,null,null,null,null,null,null,null,null,null,null,null,null,null,null,null,null,null,null,null,null,"申　 込　 者 　氏　 名",null,null,null,null,null,null,null,null,null,null,null,null,null,null,null,null,null,null,null,null,null,null,null,null,null,null,null,null,null,null,null,null,null,null,null,null,null,null,null,null,null,null,null,null,null,null,null,null,null,null,null,null,null,null,null,null,null,null,null,null,null,null,"備　　　考"]
[]
[]
[]
[]
[]
[null,null,null,null,null,null,null,null,null,null,null,null,null,null,null,null,null,null,null,null,null,null,null,null,null,null,null,null,null,{"$f":"育英会提出用!AD797","v":0},null,null,null,null,null,null,null,null,null,null,null,null,null,null,null,null,null,null,null,null,null,null,null,null,null,null,null,null,null,null,null,null,null,null,null,null,null,null,null,null,null,null,null,null,null,null,null,null,null,null,null,null,null,null,null,null,null,null,null,null,null,null,{"$f":"育英会提出用!CO797","v":0}]
[]
[]
[]
[]
[]
[]
[]
[]
[null,null,null,null,null,null,null,null,null,null,null,null,null,null,null,null,null,null,null,null,null,null,null,null,null,null,null,null,null,{"$f":"育英会提出用!AD806","v":0},null,null,null,null,null,null,null,null,null,null,null,null,null,null,null,null,null,null,null,null,null,null,null,null,null,null,null,null,null,null,null,null,null,null,null,null,null,null,null,null,null,null,null,null,null,null,null,null,null,null,null,null,null,null,null,null,null,null,null,null,null,null,{"$f":"育英会提出用!CO806","v":0}]
[]
[]
[]
[]
[]
[]
[]
[]
[null,null,null,null,null,null,null,null,null,null,null,null,null,null,null,null,null,null,null,null,null,null,null,null,null,null,null,null,null,{"$f":"育英会提出用!AD815","v":0},null,null,null,null,null,null,null,null,null,null,null,null,null,null,null,null,null,null,null,null,null,null,null,null,null,null,null,null,null,null,null,null,null,null,null,null,null,null,null,null,null,null,null,null,null,null,null,null,null,null,null,null,null,null,null,null,null,null,null,null,null,null,{"$f":"育英会提出用!CO815","v":0}]
[]
[]
[]
[]
[]
[]
[]
[]
[null,null,null,null,null,null,null,null,null,null,null,null,null,null,null,null,null,null,null,null,null,null,null,null,null,null,null,null,null,{"$f":"育英会提出用!AD824","v":0},null,null,null,null,null,null,null,null,null,null,null,null,null,null,null,null,null,null,null,null,null,null,null,null,null,null,null,null,null,null,null,null,null,null,null,null,null,null,null,null,null,null,null,null,null,null,null,null,null,null,null,null,null,null,null,null,null,null,null,null,null,null,{"$f":"育英会提出用!CO824","v":0}]
[]
[]
[]
[]
[]
[]
[]
[]
[null,null,null,null,null,null,null,null,null,null,null,null,null,null,null,null,null,null,null,null,null,null,null,null,null,null,null,null,null,{"$f":"育英会提出用!AD833","v":0},null,null,null,null,null,null,null,null,null,null,null,null,null,null,null,null,null,null,null,null,null,null,null,null,null,null,null,null,null,null,null,null,null,null,null,null,null,null,null,null,null,null,null,null,null,null,null,null,null,null,null,null,null,null,null,null,null,null,null,null,null,null,{"$f":"育英会提出用!CO833","v":0}]
[]
[]
[]
[]
[]
[5]
[]
[]
[null,null,null,null,null,null,null,null,null,null,null,null,null,null,null,null,null,null,null,null,null,null,null,null,null,null,null,null,null,{"$f":"育英会提出用!AD842","v":0},null,null,null,null,null,null,null,null,null,null,null,null,null,null,null,null,null,null,null,null,null,null,null,null,null,null,null,null,null,null,null,null,null,null,null,null,null,null,null,null,null,null,null,null,null,null,null,null,null,null,null,null,null,null,null,null,null,null,null,null,null,null,{"$f":"育英会提出用!CO842","v":0}]
[]
[]
[]
[]
[]
[]
[]
[]
[null,null,null,null,null,null,null,null,null,null,null,null,null,null,null,null,null,null,null,null,null,null,null,null,null,null,null,null,null,{"$f":"育英会提出用!AD851","v":0},null,null,null,null,null,null,null,null,null,null,null,null,null,null,null,null,null,null,null,null,null,null,null,null,null,null,null,null,null,null,null,null,null,null,null,null,null,null,null,null,null,null,null,null,null,null,null,null,null,null,null,null,null,null,null,null,null,null,null,null,null,null,{"$f":"育英会提出用!CO851","v":0}]
[]
[]
[]
[]
[]
[]
[]
[]
[null,null,null,null,null,null,null,null,null,null,null,null,null,null,null,null,null,null,null,null,null,null,null,null,null,null,null,null,null,{"$f":"育英会提出用!AD860","v":0},null,null,null,null,null,null,null,null,null,null,null,null,null,null,null,null,null,null,null,null,null,null,null,null,null,null,null,null,null,null,null,null,null,null,null,null,null,null,null,null,null,null,null,null,null,null,null,null,null,null,null,null,null,null,null,null,null,null,null,null,null,null,{"$f":"育英会提出用!CO860","v":0}]
[]
[]
[]
[]
[]
[]
[]
[]
[null,null,null,null,null,null,null,null,null,null,null,null,null,null,null,null,null,null,null,null,null,null,null,null,null,null,null,null,null,{"$f":"育英会提出用!AD869","v":0},null,null,null,null,null,null,null,null,null,null,null,null,null,null,null,null,null,null,null,null,null,null,null,null,null,null,null,null,null,null,null,null,null,null,null,null,null,null,null,null,null,null,null,null,null,null,null,null,null,null,null,null,null,null,null,null,null,null,null,null,null,null,{"$f":"育英会提出用!CO869","v":0}]
[]
[]
[]
[]
[]
[]
[]
[]
[null,null,null,null,null,null,null,null,null,null,null,null,null,null,null,null,null,null,null,null,null,null,null,null,null,null,null,null,null,{"$f":"育英会提出用!AD878","v":0},null,null,null,null,null,null,null,null,null,null,null,null,null,null,null,null,null,null,null,null,null,null,null,null,null,null,null,null,null,null,null,null,null,null,null,null,null,null,null,null,null,null,null,null,null,null,null,null,null,null,null,null,null,null,null,null,null,null,null,null,null,null,{"$f":"育英会提出用!CO878","v":0}]
[]
[]
[]
[]
[]
[10]
[]
[]
[null,null,null,null,null,null,null,null,null,null,null,null,null,null,null,null,null,null,null,null,null,null,null,null,null,null,null,null,null,{"$f":"育英会提出用!AD887","v":0},null,null,null,null,null,null,null,null,null,null,null,null,null,null,null,null,null,null,null,null,null,null,null,null,null,null,null,null,null,null,null,null,null,null,null,null,null,null,null,null,null,null,null,null,null,null,null,null,null,null,null,null,null,null,null,null,null,null,null,null,null,null,{"$f":"育英会提出用!CO887","v":0}]
[]
[]
[]
[]
[]
[]
[]
[]
[null,null,null,null,null,null,null,null,null,null,null,null,null,null,null,null,null,null,null,null,null,null,null,null,null,null,null,null,null,{"$f":"育英会提出用!AD896","v":0},null,null,null,null,null,null,null,null,null,null,null,null,null,null,null,null,null,null,null,null,null,null,null,null,null,null,null,null,null,null,null,null,null,null,null,null,null,null,null,null,null,null,null,null,null,null,null,null,null,null,null,null,null,null,null,null,null,null,null,null,null,null,{"$f":"育英会提出用!CO896","v":0}]
[]
[]
[]
[]
[]
[]
[]
[]
[null,null,null,null,null,null,null,null,null,null,null,null,null,null,null,null,null,null,null,null,null,null,null,null,null,null,null,null,null,{"$f":"育英会提出用!AD905","v":0},null,null,null,null,null,null,null,null,null,null,null,null,null,null,null,null,null,null,null,null,null,null,null,null,null,null,null,null,null,null,null,null,null,null,null,null,null,null,null,null,null,null,null,null,null,null,null,null,null,null,null,null,null,null,null,null,null,null,null,null,null,null,{"$f":"育英会提出用!CO905","v":0}]
[]
[]
[]
[]
[]
[]
[]
[]
[null,null,null,null,null,null,null,null,null,null,null,null,null,null,null,null,null,null,null,null,null,null,null,null,null,null,null,null,null,{"$f":"育英会提出用!AD914","v":0},null,null,null,null,null,null,null,null,null,null,null,null,null,null,null,null,null,null,null,null,null,null,null,null,null,null,null,null,null,null,null,null,null,null,null,null,null,null,null,null,null,null,null,null,null,null,null,null,null,null,null,null,null,null,null,null,null,null,null,null,null,null,{"$f":"育英会提出用!CO914","v":0}]
[]
[]
[]
[]
[]
[]
[]
[]
[null,null,null,null,null,null,null,null,null,null,null,null,null,null,null,null,null,null,null,null,null,null,null,null,null,null,null,null,null,{"$f":"育英会提出用!AD923","v":0},null,null,null,null,null,null,null,null,null,null,null,null,null,null,null,null,null,null,null,null,null,null,null,null,null,null,null,null,null,null,null,null,null,null,null,null,null,null,null,null,null,null,null,null,null,null,null,null,null,null,null,null,null,null,null,null,null,null,null,null,null,null,{"$f":"育英会提出用!CO923","v":0}]
[]
[]
[]
[]
[]
[15]
[]
[]
[null,null,null,null,null,null,null,null,null,null,null,null,null,null,null,null,null,null,null,null,null,null,null,null,null,null,null,null,null,{"$f":"育英会提出用!AD932","v":0},null,null,null,null,null,null,null,null,null,null,null,null,null,null,null,null,null,null,null,null,null,null,null,null,null,null,null,null,null,null,null,null,null,null,null,null,null,null,null,null,null,null,null,null,null,null,null,null,null,null,null,null,null,null,null,null,null,null,null,null,null,null,{"$f":"育英会提出用!CO932","v":0}]
[]
[]
[]
[]
[]
[]
[]
[]
[null,null,null,null,null,null,null,null,null,null,null,null,null,null,null,null,null,null,null,null,null,null,null,null,null,null,null,null,null,{"$f":"育英会提出用!AD941","v":0},null,null,null,null,null,null,null,null,null,null,null,null,null,null,null,null,null,null,null,null,null,null,null,null,null,null,null,null,null,null,null,null,null,null,null,null,null,null,null,null,null,null,null,null,null,null,null,null,null,null,null,null,null,null,null,null,null,null,null,null,null,null,{"$f":"育英会提出用!CO941","v":0}]
[]
[]
[]
[]
[]
[]
[]
[]
[null,null,null,null,null,null,null,null,null,null,null,null,null,null,null,null,null,null,null,null,null,null,null,null,null,null,null,null,null,{"$f":"育英会提出用!AD950","v":0},null,null,null,null,null,null,null,null,null,null,null,null,null,null,null,null,null,null,null,null,null,null,null,null,null,null,null,null,null,null,null,null,null,null,null,null,null,null,null,null,null,null,null,null,null,null,null,null,null,null,null,null,null,null,null,null,null,null,null,null,null,null,{"$f":"育英会提出用!CO950","v":0}]
[]
[]
[]
[]
[]
[]
[]
[]
[null,null,null,null,null,null,null,null,null,null,null,null,null,null,null,null,null,null,null,null,null,null,null,null,null,null,null,null,null,{"$f":"育英会提出用!AD959","v":0},null,null,null,null,null,null,null,null,null,null,null,null,null,null,null,null,null,null,null,null,null,null,null,null,null,null,null,null,null,null,null,null,null,null,null,null,null,null,null,null,null,null,null,null,null,null,null,null,null,null,null,null,null,null,null,null,null,null,null,null,null,null,{"$f":"育英会提出用!CO959","v":0}]
[]
[]
[]
[]
[]
[]
[]
[]
[null,null,null,null,null,null,null,null,null,null,null,null,null,null,null,null,null,null,null,null,null,null,null,null,null,null,null,null,null,{"$f":"育英会提出用!AD968","v":0},null,null,null,null,null,null,null,null,null,null,null,null,null,null,null,null,null,null,null,null,null,null,null,null,null,null,null,null,null,null,null,null,null,null,null,null,null,null,null,null,null,null,null,null,null,null,null,null,null,null,null,null,null,null,null,null,null,null,null,null,null,null,{"$f":"育英会提出用!CO968","v":0}]
[]
[]
[]
[]
[]
[20]
[]
[]
[]
[null,null,null,null,"注）育英会提出用は（A）、学校控用は（B）です。",null,null,null,null,null,null,null,null,null,null,null,null,null,null,null,null,null,null,null,null,null,null,null,null,null,null,null,null,null,null,null,null,null,null,null,null,null,null,null,null,null,null,null,null,null,null,null,null,null,null,null,null,null,null,null,null,null,null,null,null,null,null,null,null,null,null,null,null,null,null,null,null,null,null,null,null,null,null,null,null,null,null,null,null,null,null,null,null,null,null,null,null,null,null,null,null,null,null,null,null,null,null,null,null,null,null,null,null,null,null,null,null,null,null,null,null,null,null,null,null,null,null,null,null,null,null,null,{"$f":"育英会提出用!EC977","v":4},null,null,null,"／",null,null,{"$f":"育英会提出用!EJ978","v":0},null,null,null,"頁"]

{"sheet":"記入例","index":2,"n_rows":0,"n_cols":0,"rows_kept":0,"cut":false,"hidden":false,"merged":[]}